Workbook

Sheet Tool
D4: PV Calc | I4: =VLOOKUP("version",Translations,LANG,FALSE) & ": " & "16/01/2023" -> Version: 16/01/2023
E5: Kies uw taal / Choisissez votre langue : | H5: FR
C6: =VLOOKUP("title_tool",Translations,LANG,FALSE) -> Calcul approximatif de la rentabilité d'une installation photovoltaïque pour la Région de Bruxelles-Capitale
C8: =VLOOKUP("value_situation",Translations,LANG,FALSE) -> - Encodez les données relatives à votre situation dans les cases bleues.
C9: =VLOOKUP("var_price",Translations,LANG,FALSE) -> - Encodez des variantes au scénario d'évolution des prix, données facultatives.
C10: =VLOOKUP("resu_witt",Translations,LANG,FALSE) -> - Les résultats sont repris dans les cases blanches; les formules qu'elles contiennent peuvent être modifiées.
C11: Présentation de l'outil: Cet outil est une feuille de calcul Excel. Il offre aux utilisateurs la possibilité de se familiariser avec les différents éléments impliqués dans le dimensionnement et la détermination du bilan financier d'un projet photovoltaïque. Il est destiné à clarifier l’importance de cette technologie afin de simplifier et de stimuler les investissements dans la production d’énergie solaire. Le dispositif est destiné à être utilisé par les particuliers, les gestionnaires techniques, gestionnaires de bâtiments, investisseurs, architectes, développeurs, consultants en ingénierie, gestionnaires de l'énergie, des animateurs ou décideur politique. Plus précisément, l'aide est destinée aux personnes qui disposent de la surface nécessaire pour produire de l'électricité verte. Néanmoins, ces résultats ne sont qu’une première approximation. Ils ne donnent qu'une indication ou non de poursuivre le projet, en particulier la fourniture d'une étude de faisabilité conformément aux « règles de l'art » à un bureau d'études compétent, et non l'ordre de l'équipement! | F11: Presentatie van de tool : Dit hulpmiddel is een Excel-rekenblad. Het biedt een gebruiker de kans om kennis te maken met de verschillende elementen die een rol spelen bij de dimensionering en de bepaling van de financiële balans van een fotovoltaïsch project. Het is bedoeld om het belang van deze technologie duidelijk te maken om de investeringen in de productie van zonne-energie te vereenvoudigen en te stimuleren. Het hulpmiddel is bestemd voor gebruik door particulieren, technisch verantwoordelijken, beheerders van gebouwen, investeerders, architecten, bouwheren, ingenieurs-consulenten, energieverantwoordelijken, facilitatoren of beleidsmaker. Het hulpmiddel richt zich daarbij meer bepaald tot die personen die over de vereiste oppervlakten beschikken, die voor de opwekking van groene stroom gebruikt kunnen worden. Niettemin, zijn deze resultaten maar een eerste benadering. Ze geven slechts een aanwijzing voor het wel of niet voortzetten van het project, met name de bestelling van een haalbaarheidsstudie volgens de 'Regels van de Kunst' aan een bevoegd studiebureel, en niet de bestelling van de uitrusting !
C12: =VLOOKUP("name_org",Translations,LANG,FALSE) -> Nom de l'établissement :
C16: =VLOOKUP("bep_afm",Translations,LANG,FALSE) -> Dimensionnement de l'installation photovoltaïque
C18: =VLOOKUP("1st_elek",Translations,LANG,FALSE) -> Etape 1 : Déterminer votre consommation électrique | G18: CELLULE A REMPLIR POUR QS !!!!!
C20: =VLOOKUP("act_sec",Translations,LANG,FALSE) -> Secteur d'activité
D21: =VLOOKUP('choix-multiples'!$F$98,'choix-multiples'!$F$99:$Q$104,5,FALSE) -> Nombre de logements = | G21: 1000 | H21: =VLOOKUP('choix-multiples'!$F$98,'choix-multiples'!$F$99:$Q$104,10,FALSE) -> Logements
E23: =VLOOKUP("Volgens facturen",Translations,LANG,FALSE) -> Selon factures | F23: =VLOOKUP("Schatting",Translations,LANG,FALSE) -> Estimation
C24: =VLOOKUP("Jaarlijks elektriciteitsverbruik van de locatie",Translations,LANG,FALSE) -> Consommation annuelle d'électricité du site | F24: =VLOOKUP('choix-multiples'!F98,'choix-multiples'!F99:G104,2,FALSE) -> 788000 | G24: =VLOOKUP("kWu/jaar",Translations,LANG,FALSE) -> kWh/an
C26: =VLOOKUP("2de stap : Bepalen van het vermogen van de installatie",Translations,LANG,FALSE) -> Etape 2 : Déterminer la puissance de l'installation
C28: =VLOOKUP("Beschikbare oppervlakte van dak",Translations,LANG,FALSE) -> Surface disponible de toiture | E28: 70 | F28: m2
C30: =VLOOKUP("Type van montage",Translations,LANG,FALSE) -> Type de montage | G30: =IF('choix-multiples'!G132='choix-multiples'!E136,VLOOKUP("warning rug aan rug montage",Translations,LANG,FALSE),"") -> 
C32: =VLOOKUP("Oriëntatie van de panelen",Translations,LANG,FALSE) -> Orientation des panneaux
C34: =VLOOKUP("Hellingshoek van de panelen",Translations,LANG,FALSE) -> Inclinaison des panneaux
C36: =VLOOKUP("Type van technologie",Translations,LANG,FALSE) -> Type de technologie | I36: ='choix-multiples'!I25 -> 15 | J36: %
C38: =VLOOKUP("Zonneproductiefactor ",Translations,LANG,FALSE) -> Facteur de production solaire | E38: =SolarFactorProduct -> 892.4 | F38: =VLOOKUP("kWu/(kWp*jaar)",Translations,LANG,FALSE) -> kWh/(kWc*an)
C40: =VLOOKUP("Maximaal dak potentiel",Translations,LANG,FALSE) -> Potentiel maximum de la toiture
C41: =VLOOKUP("Maximaal vermogen van de fotovoltaïsche generator",Translations,LANG,FALSE) -> Puissance photovoltaïque maximale | E41: =MaximumSurface/EnergieProduite_kWc_m²!F29 -> 3.913 | F41: =VLOOKUP("kWp",Translations,LANG,FALSE) -> kWc
C42: =VLOOKUP("Maximaal pannelen oppervlakte",Translations,LANG,FALSE) -> Surface maximale de capteur | E42: =IF(OR(ISBLANK(Surface),ISTEXT(Surface),Surface<0),0,Surface*FactSurfMax) -> 30.1 | F42: m²
C43: =VLOOKUP("Raming van de geproduceerde hoeveelheid nuttige energie",Translations,LANG,FALSE) -> Estimation de l'énergie utile produite | E43: =E41*SolarProductionFactor -> 3491.9612 | F43: =VLOOKUP("kWu/jaar",Translations,LANG,FALSE) -> kWh/an
C45: =VLOOKUP("Gewenste vermogen",Translations,LANG,FALSE) -> Puissance souhaitée
C46: =VLOOKUP("Gewenste vermogen van de fotovoltaïsche generator",Translations,LANG,FALSE) -> Puissance de générateur photovoltaïque souhaitée | E46: 10 | F46: =VLOOKUP("kWp",Translations,LANG,FALSE) -> kWc | G46: =IF(Tool!E46>E41,VLOOKUP("Te groot vermogen voor de gegeven oppervlakte",Translations,LANG,FALSE),"") -> Puissance trop grande pour la surface donnée
C47: =VLOOKUP("Pannelen oppervlakte",Translations,LANG,FALSE) -> Surface capteur | E47: =_Cmt_Peak*1000/335*1.6 -> 47.76119403 | F47: m2
C49: =VLOOKUP("Gebruikte gegevens berekiningen",Translations,LANG,FALSE) -> Données utilisées pour les calculs
C50: =VLOOKUP("Generator gebruikt vermogen",Translations,LANG,FALSE) -> Puissance de générateur utilisée | E50: =_Cmt_Peak -> 10 | F50: =VLOOKUP("kWp",Translations,LANG,FALSE) -> kWc
C51: =VLOOKUP("Oppervlakte gebruikte panelen",Translations,LANG,FALSE) -> Surface capteur utilisée | E51: =E47 -> 47.76119403 | F51: m²
C52: =VLOOKUP("Raming van de geproduceerde hoeveelheid nuttige energie",Translations,LANG,FALSE) -> Estimation de l'énergie utile produite | E52: =_Cmt_Peak*SolarProductionFactor -> 8924 | F52: =VLOOKUP("kWu/jaar",Translations,LANG,FALSE) -> kWh/an | G52: << helioscope !!
D54: =IF(E52>Page_calcul!J4,VLOOKUP("Opgepast, uw theoretisch elektrische productie is hoger dan uw verbruik",Translations,LANG,FALSE),"") -> 
C56: =VLOOKUP("warning_schadow",Translations,LANG,FALSE) -> Ce logiciel ne calcule pas l'impact des ombres sur la production des panneaux. Il est important de vérifier s'il y a, à un ou plusieurs moments de la journée, un ou des obstacles entre le soleil et les panneaux solaires. 10% d'ombrage sur le panneau et toute la puissance électrique s'écroule.
C60: =VLOOKUP("Rendabiliteit van uw fotovoltaïsch project ",Translations,LANG,FALSE) -> Rentabilité de votre projet photovoltaïque
C62: =VLOOKUP("1ste stap : Berekenen van de winst op uw elektriciteitsrekening",Translations,LANG,FALSE) -> Etape 1 : Calculer le gain sur la facture électrique
F63: =VLOOKUP("Schatting",Translations,LANG,FALSE) -> Estimation | H63: prix avril 2023
C64: =VLOOKUP("Tarief elektriciteit (met BTW)",Translations,LANG,FALSE) -> Tarif de l'électricité (avec TVA) | D64: HTVA | E64: =I67 -> 0.3637358491 | F64: 0.2 | G64: =VLOOKUP("€/kWu",Translations,LANG,FALSE) -> €/kWh | H64: https://app.powerbi.com/view?r=eyJrIjoiMjBkYTJiOTItMzczMy00MjY3LTg0YTUtY2Q3YmI5YWQ5ODk0IiwidCI6ImMwYjg2YzA3LWRhZGUtNDkyMC1hYzEzLWIwZWNhZDNiMmM5NSIsImMiOjh9
F65: =VLOOKUP("Bij gebrek aan informatie",Translations,LANG,FALSE) -> Par défaut
C66: =VLOOKUP("Tarief van afkoop van de elektriciteit",Translations,LANG,FALSE) -> Tarif de rachat de l'électricité | D66: HTVA | E66: 0.04 | F66: ='choix-multiples'!H49 -> 0.05 | G66: =VLOOKUP("€/kWu",Translations,LANG,FALSE) -> €/kWh | H66: Avril 2023 | I66: Prix de l'électricité | J66: Prix du Gaz
F67: =VLOOKUP("Bij gebrek aan informatie",Translations,LANG,FALSE) -> Par défaut | H67: Résidentiel | I67: =0.38556/1.06 -> 0.3637358491 | J67: =0.08206/1.06 -> 0.07741509434
C68: =VLOOKUP("Stijging van de elektriciteitsprijs (zonder inflatie)",Translations,LANG,FALSE) -> Augmentation du prix de l'électricité (hors inflation) | F68: ='choix-multiples'!H51 -> 0.0587 | G68: =VLOOKUP("/jaar",Translations,LANG,FALSE) -> /an | H68: Tertiaire | I68: 0.3049 | J68: 0.0817
C70: =VLOOKUP("Niveau van auto-consumptie",Translations,LANG,FALSE) -> Taux d'auto-consommation | E70: 0.35
C72: =VLOOKUP("auto-conso",Translations,LANG,FALSE) -> Il est très important d'évaluer correctement sa propre consommation. L'électricité consommée en même temps que sa production sur le même compteur d' électricité apporte une économie plus grande parce que la charge réelle du réseau électrique diminue. La surproduction d' électricité est achetée à un tarif, inférieur au tarif d'achat, comme contractuellement convenu avec le fournisseur. Pour les installations inférieures à 5 kWc, le mécanisme de compensation (le compteur "tourne à l'envers") est toujours d'application jusqu'en 2021, mais cela n'est pas pris en compte dans l'outil.
C75: =VLOOKUP("Winst op de aankoopfactuur van elektriciteit ",Translations,LANG,FALSE) -> Gain sur la facture d'achat de l'électricité | D75: =I76 & " - " &I77 -> 44197 - Avril 2023 | E75: =ROUND((Page_calcul!H22*J76),1) & " - " & ROUND((Page_calcul!H22*J77),1) -> 674,7 - 1136,9 | F75: =VLOOKUP("€/jaar",Translations,LANG,FALSE) -> €/an | J75: Prix de l'élecricité
E76: =Page_calcul!H22*Tool!J76 -> 674.6544 | F76: =Page_calcul!H22*Tool!J77 -> 1136.9176 | I76: 2021-01-01 | J76: 0.216 | K76: € HTVA/kWh
C77: =VLOOKUP("Winst op de verkoop van elektriciteit ",Translations,LANG,FALSE) -> Gain issu de la vente d'électricité | E77: =Page_calcul!Q22 -> 232.024 | F77: =VLOOKUP("€/jaar",Translations,LANG,FALSE) -> €/an | I77: Avril 2023 | J77: 0.364 | K77: € HTVA/kWh
H79: https://www.brugel.brussels/themes/energies-renouvelables-11/mecanisme-des-certificats-verts-35
C80: =VLOOKUP("2de stap : Berekenen van de inkomsten door de Groenestroomcertificaten (GSC) ",Translations,LANG,FALSE) -> Etape 2 : Calculer le gain sur les certificats verts (CV)
C82: =VLOOKUP("CO2 emissie coëfficiënt van de referentie installatie",Translations,LANG,FALSE) -> Coefficient d'émission en CO2 de l'installation de référence | E82: =Certificats_Verts!O4 -> 394.5 | F82: =VLOOKUP("kg CO2/Mwu",Translations,LANG,FALSE) -> kg CO2/MWh
C84: =VLOOKUP("CO2 besparing van de fotovoltaïsche installatie",Translations,LANG,FALSE) -> Economie en CO2 de l'installation PV | E84: =((Page_calcul!G22/1000)*'choix-multiples'!G92) -> 3520.518 | F84: =VLOOKUP("kg CO2/jaar",Translations,LANG,FALSE) -> kg CO2/an
C86: =VLOOKUP("Uitgespaarde hoeveelheid primaire energie",Translations,LANG,FALSE) -> Energie primaire économisée | E86: =E52/0.55 -> 16225.45455 | F86: =VLOOKUP("kWu/jaar",Translations,LANG,FALSE) -> kWh/an
C88: Taux d'octroi CV | E88: =IF(_cmt_peak_used<=5,1.9,IF(_cmt_peak_used<=36,1.8,IF(_cmt_peak_used<=100,1.7,IF(_cmt_peak_used<=250,1.4,1.2)))) -> 1.8 | F88: CV/MWh (à partir de janvier 2023)
C89: =VLOOKUP("Aantal toegekende GSC ",Translations,LANG,FALSE) -> Nombre annuel de certificats verts attribué | E89: =E88*_Cmt_Estimat/1000 -> 16.0632
C91: =VLOOKUP("Prijs van de GSC ",Translations,LANG,FALSE) -> Valeur d'un Certificat Vert (sur le marché) | E91: 85 | F91: € | G91: =VLOOKUP("De gegarandeerde aankoop prijs van ELIA is 65€/GSC",Translations,LANG,FALSE) -> Le prix garanti par ELIA est de 65€/CV
C93: =VLOOKUP("Inkomsten door de verkoop van GSC ",Translations,LANG,FALSE) -> Gain issu de la vente des certificats verts | E93: =E89*E91 -> 1365.372 | F93: =VLOOKUP("€/jaar",Translations,LANG,FALSE) -> €/an
C95: =VLOOKUP("3de stap : Berekenen van de uitgave voor het onderhoud (zonder de verzekering)",Translations,LANG,FALSE) -> Etape 3 : Calculer les dépenses en entretien (sans assurance)
F96: =VLOOKUP("Schatting",Translations,LANG,FALSE) -> Estimation
C97: =VLOOKUP("Jaarlijkse kosten van het onderhoud",Translations,LANG,FALSE) -> Coût annuel de l'entretien | F97: =Calcul_CoûtBrut_m²!I8 -> 225 | G97: =VLOOKUP("€/jaar",Translations,LANG,FALSE) -> €/an | H97: =VLOOKUP("Let op: er wordt geen rekening meer gehouden met verzekeringskosten en schoonmaakkosten",Translations,LANG,FALSE) -> Attention : les coûts de l'assurance et de nettoyage ne sont plus pris en compte (trop variables)
C99: =VLOOKUP("4de stap : Raming van de investering ",Translations,LANG,FALSE) -> Etape 4 : Estimer le montant d'investissement
C101: =VLOOKUP("BTW ",Translations,LANG,FALSE) -> TVA | H101: !! If above 30kVA, add extra 10 k€ (armoire de découplage)
H102: https://www.sibelga.be/fr/raccordements-compteurs/energie-renouvelable/exigences-techniques | V102: 28 kWc | W102: X:\Projecten extern\E 07340 Facilitateur 2ème ligne 2022\M020 - Concept\M02020 - Guidance premium\45427_Résidence Stiénon_Laurance LEMAIRE\M02010 - Info IN\DEVIS EXU_N°00146 - L&S IMMOTECH - Av. J-B Depaire 101 V1.pdf
E103: =VLOOKUP("Prijsofferte van installateur",Translations,LANG,FALSE) -> Devis installateur | F103: =VLOOKUP("Schatting",Translations,LANG,FALSE) -> Estimation | H103: !!!! 25% moins cher sur base d'un devis de Avril 2022
C104: =VLOOKUP("Raming van de netto financiële investering",Translations,LANG,FALSE) -> Estimation du coût financier brut | E104: =_Cmt_CoutEst -> 15245.98 | F104: =Calcul_CoûtBrut_m²!R39 -> 15245.98 | G104: =IF('choix-multiples'!H111>1,VLOOKUP("€ (incl. BTW)",Translations,LANG,FALSE),VLOOKUP("€ (excl. BTW)",Translations,LANG,FALSE)) -> € (TVAC)
C106: =VLOOKUP("Andere premies (gemeente, subsidies, ...)",Translations,LANG,FALSE) -> Autres primes (communales, subsides...) | F106: €
C108: =VLOOKUP("Investeringsaftrek",Translations,LANG,FALSE) -> Déductions fiscales (entreprises) | E108: ='choix-multiples'!V24 -> 0 | F108: €
C110: =VLOOKUP("Installatiekostprijs per Wpiek",Translations,LANG,FALSE) -> Prix de l'installation par Wc | E110: =IF(OR(ISBLANK(E104),ISTEXT(E104),E104<0),F104/(IF(E46>0,E46,E41)*1000),E104/(IF(E46>0,E46,E41)*1000)) -> 1.524598 | F110: =IF('choix-multiples'!H111>1,VLOOKUP("€/Wp (incl. BTW)",Translations,LANG,FALSE),VLOOKUP("€/Wp (excl. BTW)",Translations,LANG,FALSE)) -> €/Wc (TVAC)
C112: =VLOOKUP("Raming van de netto financiële investering",Translations,LANG,FALSE) -> Estimation du coût financier brut | E112: =(IF(Tool!E104<1,Tool!F104,Tool!E104))-E108-E106 -> 15245.98 | F112: =IF('choix-multiples'!H111>1,VLOOKUP("€ (incl. BTW)",Translations,LANG,FALSE),VLOOKUP("€ (excl. BTW)",Translations,LANG,FALSE)) -> € (TVAC)
C114: =VLOOKUP("5de stap : Schatting van de rendabiliteit van het project ",Translations,LANG,FALSE) -> Etape 5 : Estimer la rentabilité du projet
F115: =VLOOKUP("Bij gebrek aan informatie",Translations,LANG,FALSE) -> Par défaut
C116: =VLOOKUP("Belastingtarief",Translations,LANG,FALSE) -> Taux d''imposition | F116: =IF('choix-multiples'!F98>1,0,0.3399) -> 0
F117: =VLOOKUP("Bij gebrek aan informatie",Translations,LANG,FALSE) -> Par défaut
C118: =VLOOKUP("Intrestvoet (zonder inflatie)",Translations,LANG,FALSE) -> Taux d'actualisation (hors inflation) | F118: =IF('choix-multiples'!F98>1,0,0.055) -> 0
C120: =VLOOKUP("Jaarlijkse netto-opbrengst van het fotovoltaïsche project ",Translations,LANG,FALSE) -> Gain annuel du projet photovoltaïque | E120: =ROUND((E76+E77+E93-Page_calcul!M23-Page_calcul!N23),1) & " - " & ROUND((F76+E77+E93-Page_calcul!M23-Page_calcul!N23),1) -> 2047,1 - 2509,3 | F120: =VLOOKUP("€/jaar",Translations,LANG,FALSE) -> €/an
E121: =E76+E77+E93-Page_calcul!M23-Page_calcul!N23 -> 2047.0504 | F121: =F76+E77+E93-Page_calcul!M23-Page_calcul!N23 -> 2509.3136
C122: =VLOOKUP("Pay-back periode van het project ",Translations,LANG,FALSE) -> Temps de Retour Simple | E122: =ROUND((E112/E121),1) & " - " & ROUND((E112/F121),1) -> 7,4 - 6,1 | F122: =VLOOKUP("jaren",Translations,LANG,FALSE) -> ans
C124: =VLOOKUP("Interne intrestvoet van het project (10 jaren)",Translations,LANG,FALSE) -> Taux de rentabilité interne après 10 ans | E124: =IFERROR(Page_calcul!V5,0) -> 0.1400347424
C125: =VLOOKUP(" (20 jaren)",Translations,LANG,FALSE) -> 20 ans | E125: =IFERROR(Page_calcul!V6,0) -> 0.1785735948
C127: =VLOOKUP("Netto-actuele waarde van de winsten (10 jaren)",Translations,LANG,FALSE) -> Valeur actualisée nette des gains après 10 ans | E127: =IFERROR(Page_calcul!AA31,0) -> 14698.50438 | F127: €
C128: =VLOOKUP(" (20 jaren)",Translations,LANG,FALSE) -> 20 ans | E128: =IFERROR(Page_calcul!AA41,0) -> 40798.63712 | F128: €
C130: =VLOOKUP("Dynamische pay-back periode",Translations,LANG,FALSE) -> Temps de retour dynamique | E130: =IFERROR(Page_calcul!V4,0) -> 5.401077795 | F130: =VLOOKUP("jaren",Translations,LANG,FALSE) -> ans

Sheet Translations (hidden)
A1: Copy paste | B1: Key | C1: NL | D1: FR | E1: EN | F1: DE | G1: Traduction utilisé dans tool | N1: Indice lang traduction | O1: =MATCH(Tool!H5,Translations!$C$1:$AA$1,0)+1 -> 3
B2: version | C2: Versie | D2: Version | G2: =VLOOKUP(B2,Translations,LANG,FALSE) -> Version
A3: ="#VLOOKUP(" & """" & B3 & """" & ";Translations;LANG;FALSE)" -> #VLOOKUP("title_tool";Translations;LANG;FALSE) | B3: title_tool | C3: Benaderende studie van de rendabiliteit van een fotovoltaïsche installatie in het Brussels Hoofdstedelijk Gewest | D3: Calcul approximatif de la rentabilité d'une installation photovoltaïque pour la Région de Bruxelles-Capitale | E3: Approximative study | G3: Calcul approximatif de la rentabilité d'une installation photovoltaïque pour la Région de Bruxelles-Capitale
A4: ="#VLOOKUP(" & """" & B4 & """" & ";Translations;LANG;FALSE)" -> #VLOOKUP("value_situation";Translations;LANG;FALSE) | B4: value_situation | C4: - Gelieve de waarde aangaande uw situatie toe te voegen in de blauwe cel. | D4: - Encodez les données relatives à votre situation dans les cases bleues. | G4: - Encodez les données relatives à votre situation dans les cases bleues.
A5: #VLOOKUP("var_price";Translations;LANG;FALSE) | B5: var_price | C5: - Gelieve uw varianten van de prijsontwikkeling en facultatieve gegevens toe te voegen. | D5: - Encodez des variantes au scénario d'évolution des prix, données facultatives. | G5: - Encodez des variantes au scénario d'évolution des prix, données facultatives.
A6: #VLOOKUP("resu_witt";Translations;LANG;FALSE) | B6: resu_witt | C6: - De resultaten worden in de witte cellen opgenomen, de onderliggende formules kunnen gewijzigd worden. | D6: - Les résultats sont repris dans les cases blanches; les formules qu'elles contiennent peuvent être modifiées. | G6: - Les résultats sont repris dans les cases blanches; les formules qu'elles contiennent peuvent être modifiées.
A7: #VLOOKUP("name_org";Translations;LANG;FALSE) | B7: name_org | C7: Benaming van de instelling : | D7: Nom de l'établissement : | G7: Nom de l'établissement :
A8: #VLOOKUP("bep_afm";Translations;LANG;FALSE) | B8: bep_afm | C8: Bepaling van de afmetingen van de fotovoltaïsche installatie | D8: Dimensionnement de l'installation photovoltaïque | G8: Dimensionnement de l'installation photovoltaïque
A9: #VLOOKUP("1st_elek";Translations;LANG;FALSE) | B9: 1st_elek | C9: 1ste stap : Bepaling van uw elektriciteitsverbruik | D9: Etape 1 : Déterminer votre consommation électrique | G9: Etape 1 : Déterminer votre consommation électrique
A10: #VLOOKUP("act_sec";Translations;LANG;FALSE) | B10: act_sec | C10: Activiteitensector | D10: Secteur d'activité | G10: Secteur d'activité
A11: ="#VLOOKUP(" & """" & B11 & """" & ";Translations;LANG;FALSE)" -> #VLOOKUP("Jaarlijks elektriciteitsverbruik van de locatie";Translations;LANG;FALSE) | B11: =C11 -> Jaarlijks elektriciteitsverbruik van de locatie | C11: Jaarlijks elektriciteitsverbruik van de locatie | D11: Consommation annuelle d'électricité du site | G11: Consommation annuelle d'électricité du site
A12: #VLOOKUP("2de stap : Bepalen van het vermogen van de installatie";Translations;LANG;FALSE) | B12: =C12 -> 2de stap : Bepalen van het vermogen van de installatie | C12: 2de stap : Bepalen van het vermogen van de installatie | D12: Etape 2 : Déterminer la puissance de l'installation | G12: Etape 2 : Déterminer la puissance de l'installation
A13: #VLOOKUP("Beschikbare oppervlakte van dak";Translations;LANG;FALSE) | B13: Beschikbare oppervlakte van dak | C13: Beschikbare oppervlakte van dak | D13: Surface disponible de toiture | G13: Surface disponible de toiture
A14: #VLOOKUP("Type van montage";Translations;LANG;FALSE) | B14: Type van montage | C14: Type van montage | D14: Type de montage | G14: Type de montage
A15: #VLOOKUP("Oost-West orientatie voor plate dak";Translations;LANG;FALSE) | B15: Oost-West orientatie voor plate dak | C15: Oost-West orientatie voor plate dak | D15: Orientation Est-Ouest en toiture plate | G15: Orientation Est-Ouest en toiture plate
A16: #VLOOKUP("Oriëntatie van de panelen";Translations;LANG;FALSE) | B16: Oriëntatie van de panelen | C16: Oriëntatie van de panelen | D16: Orientation des panneaux | G16: Orientation des panneaux
A17: #VLOOKUP("Deze orientatie maakt het mogelijk om het te exploiteren dakoppervlak te maximaliseren, de pannelen worden achterwaarts geplaast en helderen bij 10° (zie afbeelding hieronder)";Translations;LANG;FALSE) | B17: Deze orientatie maakt het mogelijk om het te exploiteren dakoppervlak te maximaliseren, de pannelen worden achterwaarts geplaast en helderen bij 10° (zie afbeelding hieronder) | C17: Deze orientatie maakt het mogelijk om het te exploiteren dakoppervlak te maximaliseren, de pannelen worden achterwaarts geplaast en helderen bij 10° (zie afbeelding hieronder) | D17: Cette orientation permet de maximiser la surface de toiture exploitable, les capteurs sont placés dos à dos et inclinés à 10° (voir image ci-dessous) | G17: Cette orientation permet de maximiser la surface de toiture exploitable, les capteurs sont placés dos à dos et inclinés à 10° (voir image ci-dessous)
A18: #VLOOKUP("Hellingshoek van de panelen";Translations;LANG;FALSE) | B18: Hellingshoek van de panelen | C18: Hellingshoek van de panelen | D18: Inclinaison des panneaux | G18: Inclinaison des panneaux
A19: #VLOOKUP("Installatiekostprijs per Wpiek";Translations;LANG;FALSE) | B19: Installatiekostprijs per Wpiek | C19: Installatiekostprijs per Wpiek | D19: Prix de l'installation par Wc | G19: Prix de l'installation par Wc
A20: #VLOOKUP("Type van technologie";Translations;LANG;FALSE) | B20: Type van technologie | C20: Type van technologie | D20: Type de technologie | G20: Type de technologie
A21: #VLOOKUP("Pannelen oppervlakte (m²)";Translations;LANG;FALSE) | B21: Pannelen oppervlakte (m²) | C21: Pannelen oppervlakte (m²) | D21: Surface de capteur (m²) | G21: Surface de capteur (m²)
A22: #VLOOKUP("Zonneproductiefactor ";Translations;LANG;FALSE) | B22: Zonneproductiefactor | C22: Zonneproductiefactor | D22: Facteur de production solaire | G22: Facteur de production solaire
A23: #VLOOKUP("Maximaal dak potentiel";Translations;LANG;FALSE) | B23: Maximaal dak potentiel | C23: Maximaal dak potentiel | D23: Potentiel maximum de la toiture | G23: Potentiel maximum de la toiture
A24: #VLOOKUP("Maximaal vermogen van de fotovoltaïsche generator";Translations;LANG;FALSE) | B24: Maximaal vermogen van de fotovoltaïsche generator | C24: Maximaal vermogen van de fotovoltaïsche generator | D24: Puissance photovoltaïque maximale | G24: Puissance photovoltaïque maximale
A25: #VLOOKUP("Maximaal pannelen oppervlakte";Translations;LANG;FALSE) | B25: Maximaal pannelen oppervlakte | C25: Maximaal pannelen oppervlakte | D25: Surface maximale de capteur | G25: Surface maximale de capteur
A26: #VLOOKUP("Gewenste vermogen van de fotovoltaïsche generator";Translations;LANG;FALSE) | B26: Gewenste vermogen van de fotovoltaïsche generator | C26: Gewenste vermogen van de fotovoltaïsche generator | D26: Puissance de générateur photovoltaïque souhaitée | G26: Puissance de générateur photovoltaïque souhaitée
A27: #VLOOKUP("Gewenste vermogen";Translations;LANG;FALSE) | B27: Gewenste vermogen | C27: Gewenste vermogen | D27: Puissance souhaitée | G27: Puissance souhaitée
A28: #VLOOKUP("Pannelen oppervlakte";Translations;LANG;FALSE) | B28: Pannelen oppervlakte | C28: Pannelen oppervlakte | D28: Surface capteur | G28: Surface capteur
A29: #VLOOKUP("Fotovoltaïsche generator vermogen (kWp)";Translations;LANG;FALSE) | B29: Fotovoltaïsche generator vermogen (kWp) | C29: Fotovoltaïsche generator vermogen (kWp) | D29: Puissance crête (kWc) | G29: Puissance crête (kWc)
A30: #VLOOKUP("Raming van de geproduceerde hoeveelheid nuttige energie";Translations;LANG;FALSE) | B30: Raming van de geproduceerde hoeveelheid nuttige energie | C30: Raming van de geproduceerde hoeveelheid nuttige energie | D30: Estimation de l'énergie utile produite | G30: Estimation de l'énergie utile produite
A31: #VLOOKUP("kWu/(kWp*jaar)";Translations;LANG;FALSE) | B31: kWu/(kWp*jaar) | C31: kWu/(kWp*jaar) | D31: kWh/(kWc*an) | G31: kWh/(kWc*an)
A32: #VLOOKUP("kWp";Translations;LANG;FALSE) | B32: kWp | C32: kWp | D32: kWc | G32: kWc
A33: #VLOOKUP("kWu/jaar";Translations;LANG;FALSE) | B33: kWu/jaar | C33: kWu/jaar | D33: kWh/an | G33: kWh/an
A34: #VLOOKUP("mont_held";Translations;LANG;FALSE) | B34: mont_held | C34: Bovenop een hellend dak | D34: En surimposition sur une toiture inclinée | G34: En surimposition sur une toiture inclinée
A35: #VLOOKUP("Plat dak";Translations;LANG;FALSE) | B35: =C35 -> Plat dak | C35: Plat dak | D35: Toiture plate | G35: Toiture plate
A36: #vlookup("plat dak oost west";translations;lang;false) | B36: plat dak oost west | C36: Plat dak rug-aan-rug opstelling Oost-West 10 | D36: Toiture plate montage dos-à-dos Est-Ouest 10° | G36: Toiture plate montage dos-à-dos Est-Ouest 10°
A37: #VLOOKUP("Op de grond";Translations;LANG;FALSE) | B37: =C37 -> Op de grond | C37: Op de grond | D37: Au sol | G37: Au sol
A38: #VLOOKUP("Geïntegreerd in een hellend dak";Translations;LANG;FALSE) | B38: Geïntegreerd in een hellend dak | C38: Geïntegreerd in een hellend dak | D38: En intégré dans une toiture inclinée | G38: En intégré dans une toiture inclinée
A39: #VLOOKUP("Andere";Translations;LANG;FALSE) | B39: Andere | C39: Andere | D39: Autre | G39: Autre
A40: #VLOOKUP("Tertiaire sector";Translations;LANG;FALSE) | B40: Tertiaire sector | C40: Tertiaire sector | D40: Secteur tertiaire | G40: Secteur tertiaire
A41: #VLOOKUP("Collectieve huisvesting";Translations;LANG;FALSE) | B41: Collectieve huisvesting | C41: Collectieve huisvesting | D41: Logement collectif | G41: Logement collectif
A42: #VLOOKUP("Huis";Translations;LANG;FALSE) | B42: Huis | C42: Huis | D42: Maison individuelle | G42: Maison individuelle
A43: #VLOOKUP("Andere";Translations;LANG;FALSE) | B43: Andere | C43: Andere | D43: Autre | G43: Autre
A44: #VLOOKUP("BTW-plichtig of vrijgesteld van BTW";Translations;LANG;FALSE) | B44: BTW-plichtig of vrijgesteld van BTW | C44: BTW-plichtig of vrijgesteld van BTW | D44: Assujetti ou exempté de TVA | G44: Assujetti ou exempté de TVA
A45: #VLOOKUP("BTW-tarief van 6%";Translations;LANG;FALSE) | B45: BTW-tarief van 6% | C45: BTW-tarief van 6% | D45: TVA à 6% | G45: TVA à 6%
A46: #VLOOKUP("BTW-tarief van 21%";Translations;LANG;FALSE) | B46: BTW-tarief van 21% | C46: BTW-tarief van 21% | D46: TVA à 21% | G46: TVA à 21%
A47: #VLOOKUP("Ja";Translations;LANG;FALSE) | B47: Ja | C47: Ja | D47: Oui | G47: Oui
A48: #VLOOKUP("Nee";Translations;LANG;FALSE) | B48: Nee | C48: Nee | D48: Non | G48: Non
A49: #VLOOKUP("Categorie basispremie";Translations;LANG;FALSE) | B49: Categorie basispremie | C49: Categorie basispremie | D49: Catégorie de base | G49: Catégorie de base
A50: #VLOOKUP("Categorie gemiddeld inkomen";Translations;LANG;FALSE) | B50: Categorie gemiddeld inkomen | C50: Categorie gemiddeld inkomen | D50: Catégorie revenus moyens | G50: Catégorie revenus moyens
A51: #VLOOKUP("Categorie laag inkomen";Translations;LANG;FALSE) | B51: Categorie laag inkomen | C51: Categorie laag inkomen | D51: Catégorie faibles revenus | G51: Catégorie faibles revenus
A52: #VLOOKUP("Polykristallijn (silicium)";Translations;LANG;FALSE) | B52: Polykristallijn (silicium) | C52: Polykristallijn (silicium) | D52: Polycristallin | G52: Polycristallin
A53: #VLOOKUP("Monokristallijn (silicium)";Translations;LANG;FALSE) | B53: Monokristallijn (silicium) | C53: Monokristallijn (silicium) | D53: Monocristallin | G53: Monocristallin
A54: #VLOOKUP("Monokristallijn (silicium) hoog rendement";Translations;LANG;FALSE) | B54: Monokristallijn (silicium) hoog rendement | C54: Monokristallijn (silicium) hoog rendement | D54: Monocristallin haute performance | G54: Monocristallin haute performance
A55: #VLOOKUP("Amorf (silicium)";Translations;LANG;FALSE) | B55: Amorf (silicium) | C55: Amorf (silicium) | D55: Amorphe | G55: Amorphe
A56: #VLOOKUP("CdTe";Translations;LANG;FALSE) | B56: CdTe | C56: CdTe | D56: CdTe | G56: CdTe
A57: #VLOOKUP("CI(G)S";Translations;LANG;FALSE) | B57: CI(G)S | C57: CI(G)S | D57: CI(G)S | G57: CI(G)S
A58: #VLOOKUP("Weet niet";Translations;LANG;FALSE) | B58: Weet niet | C58: Weet niet | D58: Par défaut | G58: Par défaut
A59: #VLOOKUP("Richting";Translations;LANG;FALSE) | B59: Richting | C59: Richting | D59: Orientation | G59: Orientation
A60: #VLOOKUP("Oosten";Translations;LANG;FALSE) | B60: Oosten | C60: Oosten | D60: Est | G60: Est
A61: #VLOOKUP("Zuidoosten";Translations;LANG;FALSE) | B61: Zuidoosten | C61: Zuidoosten | D61: Sud-est | G61: Sud-est
A62: #VLOOKUP("Zuiden";Translations;LANG;FALSE) | B62: Zuiden | C62: Zuiden | D62: Sud | G62: Sud
A63: #VLOOKUP("Zuidwesten";Translations;LANG;FALSE) | B63: Zuidwesten | C63: Zuidwesten | D63: Sud-ouest | G63: Sud-ouest
A64: #VLOOKUP("Westen";Translations;LANG;FALSE) | B64: Westen | C64: Westen | D64: Ouest | G64: Ouest
A65: #VLOOKUP("Roterend fotovoltaïsch systeem";Translations;LANG;FALSE) | B65: Roterend fotovoltaïsch systeem | C65: Roterend fotovoltaïsch systeem | D65: Système rotatif traceur | G65: Système rotatif traceur
A66: #VLOOKUP("Oost-West";Translations;LANG;FALSE) | B66: Oost-West | C66: Oost-West | D66: Est-Ouest | G66: Est-Ouest
A67: #VLOOKUP("Vloeroppervlakte =";Translations;LANG;FALSE) | B67: Vloeroppervlakte = | C67: Vloeroppervlakte = | D67: Surface de planchers = | G67: =VLOOKUP(B67,Translations,LANG,FALSE) -> Surface de planchers =
A68: #VLOOKUP("Aantal woningen =";Translations;LANG;FALSE) | B68: Aantal woningen = | C68: Aantal woningen = | D68: Nombre de logements = | G68: Nombre de logements =
A69: #VLOOKUP("Woningen";Translations;LANG;FALSE) | B69: Woningen | C69: Woningen | D69: Logements | G69: Logements
A70: #VLOOKUP("2de stap : Bepalen van het vermogen van de installatie";Translations;LANG;FALSE) | B70: =C12 -> 2de stap : Bepalen van het vermogen van de installatie | C70: Bepalen van het vermogen van de installatie | D70: Déterminer la puissance de l'installation | G70: Etape 2 : Déterminer la puissance de l'installation
A71: #VLOOKUP("Volgens facturen";Translations;LANG;FALSE) | B71: Volgens facturen | C71: Volgens facturen | D71: Selon factures | G71: Selon factures
A72: #VLOOKUP("Schatting";Translations;LANG;FALSE) | B72: Schatting | C72: Schatting | D72: Estimation | G72: Estimation
A73: #VLOOKUP("Oost-West orientatie : Maximaal vermogen";Translations;LANG;FALSE) | B73: =C73 -> Oost-West orientatie : Maximaal vermogen | C73: Oost-West orientatie : Maximaal vermogen | D73: Orientation Est-Ouest : Maximum de puissance installée | G73: Orientation Est-Ouest : Maximum de puissance installée
A74: #VLOOKUP("Opgepast, uw theoretisch elektrische productie is hoger dan uw verbruik";Translations;LANG;FALSE) | B74: Opgepast, uw theoretisch elektrische productie is hoger dan uw verbruik | C74: Opgepast, uw theoretisch elektrische productie is hoger dan uw verbruik | D74: Attention, votre production électrique théorique dépasse votre consommation électrique | G74: Attention, votre production électrique théorique dépasse votre consommation électrique
A75: #VLOOKUP("Oost-west opstelling";Translations;LANG;FALSE) | B75: Oost-west opstelling | C75: Oost-west opstelling | D75: Orientation Est-Ouest | G75: Orientation Est-Ouest
A76: #VLOOKUP("Aan te raden (plat dak)";Translations;LANG;FALSE) | B76: Aan te raden (plat dak) | C76: Aan te raden (plat dak) | D76: Surface de toiture plate conseillée | G76: Surface de toiture plate conseillée
A77: #VLOOKUP("Te groot vermogen voor de gegeven oppervlakte";Translations;LANG;FALSE) | B77: Te groot vermogen voor de gegeven oppervlakte | C77: Te groot vermogen voor de gegeven oppervlakte | D77: Puissance trop grande pour la surface donnée | G77: Puissance trop grande pour la surface donnée
A78: #VLOOKUP("warning_schadow";Translations;LANG;FALSE) | B78: warning_schadow | C78: Dit programma houdt geen rekening met eventueel op de panelen geworpen schaduwen. Het is dan ook belangrijk om na te gaan of er op één of meerdere momenten in de loop van de dag niet één of meerdere obstakels zijn, die de inval van de zonnestralen op de zonnepanelen hinderen. Een schaduwpercentage van 10 % op een paneel is namelijk al voldoende om het volledige elektriciteit producerende vermogen ervan aanzienlijk te beperken! | D78: Ce logiciel ne calcule pas l'impact des ombres sur la production des panneaux. Il est important de vérifier s'il y a, à un ou plusieurs moments de la journée, un ou des obstacles entre le soleil et les panneaux solaires. 10% d'ombrage sur le panneau et toute la puissance électrique s'écroule. | G78: Ce logiciel ne calcule pas l'impact des ombres sur la production des panneaux. Il est important de vérifier s'il y a, à un ou plusieurs moments de la journée, un ou des obstacles entre le soleil et les panneaux solaires. 10% d'ombrage sur le panneau et toute la puissance électrique s'écroule.
A79: #VLOOKUP("Beschikbare oppervlakte (m²)";Translations;LANG;FALSE) | B79: Beschikbare oppervlakte (m²) | C79: Beschikbare oppervlakte (m²) | D79: Surface disponible (m²) | G79: Surface disponible (m²)
A80: #VLOOKUP("Collectoroppervlak (m²)";Translations;LANG;FALSE) | B80: Collectoroppervlak (m²) | C80: Collectoroppervlak (m²) | D80: Surface capteur (m²) | G80: Surface capteur (m²)
A81: #VLOOKUP("Piek Vermogen (kWp)";Translations;LANG;FALSE) | B81: Piek Vermogen (kWp) | C81: Piek Vermogen (kWp) | D81: Puissance crête (kWc) | G81: Puissance crête (kWc)
A82: #VLOOKUP("Raming van de geproduceerde energie (kWu/jaar)";Translations;LANG;FALSE) | B82: Raming van de geproduceerde energie (kWu/jaar) | C82: Raming van de geproduceerde energie (kWu/jaar) | D82: Production d'électricité estimée (kWh/an) | G82: Production d'électricité estimée (kWh/an)
A83: #VLOOKUP("Verplichte instellingen:";Translations;LANG;FALSE) | B83: Verplichte instellingen: | C83: Verplichte instellingen: | D83: Choix obligatoires: | G83: Choix obligatoires:
A84: #VLOOKUP("Type: Plat dak";Translations;LANG;FALSE) | B84: Type: Plat dak | C84: Type: Plat dak | D84: Type: Toiture plate | G84: Type: Toiture plate
A85: #VLOOKUP("Orientatie: Oost West";Translations;LANG;FALSE) | B85: Orientatie: Oost West | C85: Orientatie: Oost West | D85: Orientation: Est-Ouest | G85: Orientation: Est-Ouest
A86: #VLOOKUP("Hellingshoek: 10°";Translations;LANG;FALSE) | B86: Hellingshoek: 10° | C86: Hellingshoek: 10° | D86: Inclinaison: 10° | G86: Inclinaison: 10°
A87: #VLOOKUP("Maximumpotentieel";Translations;LANG;FALSE) | B87: Maximumpotentieel | C87: Maximumpotentieel | D87: Potentiel Maximum | G87: Potentiel Maximum
A88: =IF(B88 <> 0, "#VLOOKUP(" & """" & B88 & """" & ";Translations;LANG;FALSE)", "") -> #VLOOKUP("Rendabiliteit van uw fotovoltaïsch project ";Translations;LANG;FALSE) | B88: Rendabiliteit van uw fotovoltaïsch project | C88: Rendabiliteit van uw fotovoltaïsch project | D88: Rentabilité de votre projet photovoltaïque | G88: Rentabilité de votre projet photovoltaïque
A89: =IF(B89 <> 0, "#VLOOKUP(" & """" & B89 & """" & ";Translations;LANG;FALSE)", "") -> #VLOOKUP("Gebruikte gegevens berekiningen";Translations;LANG;FALSE) | B89: Gebruikte gegevens berekiningen | C89: Gebruikte gegevens voor de berekeningen | D89: Données utilisées pour les calculs | G89: Données utilisées pour les calculs
A90: =IF(B90 <> 0, "#VLOOKUP(" & """" & B90 & """" & ";Translations;LANG;FALSE)", "") -> #VLOOKUP("Generator gebruikt vermogen";Translations;LANG;FALSE) | B90: Generator gebruikt vermogen | C90: Vermogen toegepaste generator | D90: Puissance de générateur utilisée | G90: Puissance de générateur utilisée
A91: #VLOOKUP("Oppervlakte gebruikte panelen";Translations;LANG;FALSE) | B91: =C91 -> Oppervlakte gebruikte panelen | C91: Oppervlakte gebruikte panelen | D91: Surface capteur utilisée | G91: Surface capteur utilisée
A92: =IF(B92 <> 0, "#VLOOKUP(" & """" & B92 & """" & ";Translations;LANG;FALSE)", "") -> #VLOOKUP("warning rug aan rug montage";Translations;LANG;FALSE) | B92: warning rug aan rug montage | C92: Als het plat dak rug aan rug wordt gemonteerd, zijn de oriëntatie en de hellingshoek respectievelijk "oost-west" en "10°"; deze hoeven niet te worden gecodeerd. | D92: Si le montage retenu est « toiture plate dos-à-dos », l’orientation et l’inclinaison des panneaux sont pré-encodées par défaut et respectivement « est-ouest » et « 10° ». Ces champs ne sont pas à compléter manuellement. | G92: Si le montage retenu est « toiture plate dos-à-dos », l’orientation et l’inclinaison des panneaux sont pré-encodées par défaut et respectivement « est-ouest » et « 10° ». Ces champs ne sont pas à compléter manuellement.
A93: #VLOOKUP("1ste stap : Berekenen van de winst op uw elektriciteitsrekening";Translations;LANG;FALSE) | B93: 1ste stap : Berekenen van de winst op uw elektriciteitsrekening | C93: 1ste stap : Berekenen van de winst op uw elektriciteitsrekening | D93: Etape 1 : Calculer le gain sur la facture électrique | G93: Etape 1 : Calculer le gain sur la facture électrique
A94: #VLOOKUP("Zonneproductiefactor (kWh/kWc/m²/an)";Translations;LANG;FALSE) | B94: Zonneproductiefactor (kWh/kWc/m²/an) | C94: Zonneproductiefactor (kWh/kWc/m²/an) | D94: Facteur solaire (kWh/kWc/m²/an) | G94: Facteur solaire (kWh/kWc/m²/an)
A95: #VLOOKUP("Tarief elektriciteit (met BTW)";Translations;LANG;FALSE) | B95: Tarief elektriciteit (met BTW) | C95: Tarief elektriciteit (met BTW) | D95: Tarif de l'électricité (avec TVA) | G95: Tarif de l'électricité (avec TVA)
A96: #VLOOKUP("Geestimeerd elektrischproductie (kWh/jaar)";Translations;LANG;FALSE) | B96: Geestimeerd elektrischproductie (kWh/jaar) | C96: Geestimeerd elektrischproductie (kWh/jaar) | D96: Production d'électricité estimée (kWh/an) | G96: Production d'électricité estimée (kWh/an)
A97: #VLOOKUP("Tarief van afkoop van de elektriciteit";Translations;LANG;FALSE) | B97: Tarief van afkoop van de elektriciteit | C97: Tarief van afkoop van de elektriciteit | D97: Tarif de rachat de l'électricité | G97: Tarif de rachat de l'électricité
A98: #VLOOKUP("Ga door met simulatie mer Oost-West orientatie";Translations;LANG;FALSE) | B98: Ga door met simulatie mer Oost-West orientatie | C98: Ga door met simulatie mer Oost-West orientatie | D98: Continuer la simulation avec une orientation Est-Ouest | G98: Continuer la simulation avec une orientation Est-Ouest
A99: #VLOOKUP("Stijging van de elektriciteitsprijs (zonder inflatie)";Translations;LANG;FALSE) | B99: Stijging van de elektriciteitsprijs (zonder inflatie) | C99: Stijging van de elektriciteitsprijs (zonder inflatie) | D99: Augmentation du prix de l'électricité (hors inflation) | G99: Augmentation du prix de l'électricité (hors inflation)
B100: 0 | G100: 0
A101: #VLOOKUP("Niveau van auto-consumptie";Translations;LANG;FALSE) | B101: Niveau van auto-consumptie | C101: Niveau van auto-consumptie | D101: Taux d'auto-consommation | G101: Taux d'auto-consommation
B102: =C102 -> 0 | G102: 0
A103: #VLOOKUP("Winst op de aankoopfactuur van elektriciteit ";Translations;LANG;FALSE) | B103: Winst op de aankoopfactuur van elektriciteit | C103: Winst op de aankoopfactuur van elektriciteit | D103: Gain sur la facture d'achat de l'électricité | G103: Gain sur la facture d'achat de l'électricité
B104: 0 | G104: 0
A105: #VLOOKUP("Winst op de verkoop van elektriciteit ";Translations;LANG;FALSE) | B105: Winst op de verkoop van elektriciteit | C105: Winst op de verkoop van elektriciteit | D105: Gain issu de la vente d'électricité | G105: Gain issu de la vente d'électricité
B106: 0 | G106: 0
B107: 0 | G107: 0
A108: #VLOOKUP("2de stap : Berekenen van de inkomsten door de Groenestroomcertificaten (GSC) ";Translations;LANG;FALSE) | B108: 2de stap : Berekenen van de inkomsten door de Groenestroomcertificaten (GSC) | C108: 2de stap : Berekenen van de inkomsten door de Groenestroomcertificaten (GSC) | D108: Etape 2 : Calculer le gain sur les certificats verts (CV) | G108: Etape 2 : Calculer le gain sur les certificats verts (CV)
B109: 0 | G109: 0
A110: #VLOOKUP("CO2 emissie coëfficiënt van de referentie installatie";Translations;LANG;FALSE) | B110: CO2 emissie coëfficiënt van de referentie installatie | C110: CO2 emissie coëfficiënt van de referentie installatie | D110: Coefficient d'émission en CO2 de l'installation de référence | G110: Coefficient d'émission en CO2 de l'installation de référence
B111: 0 | G111: 0
A112: #VLOOKUP("CO2 besparing van de fotovoltaïsche installatie";Translations;LANG;FALSE) | B112: CO2 besparing van de fotovoltaïsche installatie | C112: CO2 besparing van de fotovoltaïsche installatie | D112: Economie en CO2 de l'installation PV | G112: Economie en CO2 de l'installation PV
B113: 0 | G113: 0
A114: #VLOOKUP("Uitgespaarde hoeveelheid primaire energie";Translations;LANG;FALSE) | B114: Uitgespaarde hoeveelheid primaire energie | C114: Uitgespaarde hoeveelheid primaire energie | D114: Energie primaire économisée | G114: Energie primaire économisée
B115: 0 | G115: 0
A116: #VLOOKUP("Aantal toegekende GSC ";Translations;LANG;FALSE) | B116: Aantal toegekende GSC | C116: Aantal toegekende GSC | D116: Nombre annuel de certificats verts attribué | G116: Nombre annuel de certificats verts attribué
B117: 0 | G117: 0
A118: #VLOOKUP("Prijs van de GSC ";Translations;LANG;FALSE) | B118: Prijs van de GSC | C118: Prijs van de GSC | D118: Valeur d'un Certificat Vert (sur le marché) | G118: Valeur d'un Certificat Vert (sur le marché)
B119: 0 | G119: 0
A120: #VLOOKUP("Inkomsten door de verkoop van GSC ";Translations;LANG;FALSE) | B120: Inkomsten door de verkoop van GSC | C120: Inkomsten door de verkoop van GSC | D120: Gain issu de la vente des certificats verts | G120: Gain issu de la vente des certificats verts
B121: 0 | G121: 0
A122: #VLOOKUP("3de stap : Berekenen van de uitgave voor het onderhoud (zonder de verzekering)";Translations;LANG;FALSE) | B122: 3de stap : Berekenen van de uitgave voor het onderhoud (zonder de verzekering) | C122: 3de stap : Berekenen van de uitgave voor het onderhoud (zonder de verzekering) | D122: Etape 3 : Calculer les dépenses en entretien (sans assurance) | G122: Etape 3 : Calculer les dépenses en entretien (sans assurance)
B123: 0 | G123: 0
A124: #VLOOKUP("Jaarlijkse kosten van het onderhoud";Translations;LANG;FALSE) | B124: Jaarlijkse kosten van het onderhoud | C124: Jaarlijkse kosten van het onderhoud | D124: Coût annuel de l'entretien | G124: Coût annuel de l'entretien
B125: 0 | G125: 0
A126: #VLOOKUP("Let op: er wordt geen rekening meer gehouden met verzekeringskosten en schoonmaakkosten";Translations;LANG;FALSE) | B126: Let op: er wordt geen rekening meer gehouden met verzekeringskosten en schoonmaakkosten | C126: Let op: er wordt geen rekening meer gehouden met verzekeringskosten en schoonmaakkosten (te verandelijk) | D126: Attention : les coûts de l'assurance et de nettoyage ne sont plus pris en compte (trop variables) | G126: Attention : les coûts de l'assurance et de nettoyage ne sont plus pris en compte (trop variables)
B127: 0 | G127: 0
A128: #VLOOKUP("Uitgaven in onderhoud (zonder verzekering)";Translations;LANG;FALSE) | B128: Uitgaven in onderhoud (zonder verzekering) | C128: Uitgaven in onderhoud (zonder verzekering) | D128: Dépense en entretien (sans assurance) | G128: Dépense en entretien (sans assurance)
B129: 0 | G129: 0
A130: #VLOOKUP("4de stap : Raming van de investering ";Translations;LANG;FALSE) | B130: 4de stap : Raming van de investering | C130: 4de stap : Raming van de investering | D130: Etape 4 : Estimer le montant d'investissement | G130: Etape 4 : Estimer le montant d'investissement
B131: 0 | G131: 0
A132: #VLOOKUP("Type gebouw";Translations;LANG;FALSE) | B132: Type gebouw | C132: Type gebouw | D132: Niveau énergétique du bâtiment | G132: Niveau énergétique du bâtiment
B133: 0 | G133: 0
A134: #VLOOKUP("BTW ";Translations;LANG;FALSE) | B134: BTW | C134: BTW | D134: TVA | G134: =VLOOKUP(B134,Translations,LANG,FALSE) -> TVA
B135: 0 | G135: 0
A136: #VLOOKUP("Categorie van het gezinsinkomen";Translations;LANG;FALSE) | B136: Categorie van het gezinsinkomen | C136: Categorie van het gezinsinkomen | D136: Catégorie de revenu | G136: Catégorie de revenu
B137: 0 | G137: 0
B138: 0 | G138: 0
A139: #VLOOKUP("Raming van de netto financiële investering";Translations;LANG;FALSE) | B139: Raming van de netto financiële investering | C139: Raming van de netto financiële investering | D139: Estimation du coût financier brut | G139: Estimation du coût financier brut
B140: 0 | G140: 0
A141: #VLOOKUP("Bedrag van de energiepremies ";Translations;LANG;FALSE) | B141: Bedrag van de energiepremies | C141: Bedrag van de energiepremies | D141: Montant des primes énergies | G141: Montant des primes énergies
B142: 0 | G142: 0
A143: #VLOOKUP("Steun in het Brussels Gewest voor ondernemingen";Translations;LANG;FALSE) | B143: Steun in het Brussels Gewest voor ondernemingen | C143: Steun in het Brussels Gewest voor ondernemingen | D143: Aides régionales (MBRC) pour les entreprises | G143: Aides régionales (MBRC) pour les entreprises
B144: 0 | G144: 0
A145: #VLOOKUP("Andere premies (gemeente, subsidies, ...)";Translations;LANG;FALSE) | B145: Andere premies (gemeente, subsidies, ...) | C145: Andere premies (gemeente, subsidies, ...) | D145: Autres primes (communales, subsides...) | G145: Autres primes (communales, subsides...)
B146: 0 | G146: 0
A147: #VLOOKUP("Investeringsaftrek";Translations;LANG;FALSE) | B147: Investeringsaftrek | C147: Investeringsaftrek | D147: Déductions fiscales (entreprises) | G147: Déductions fiscales (entreprises)
B148: 0 | G148: 0
A149: #VLOOKUP("Installatiekostprijs per Wp";Translations;LANG;FALSE) | B149: Installatiekostprijs per Wp | C149: Installatiekostprijs per Wp | D149: Coût de l'installation par Wc | G149: Coût de l'installation par Wc
B150: 0 | G150: 0
A151: #VLOOKUP("Raming van de netto financiële investering";Translations;LANG;FALSE) | B151: Raming van de netto financiële investering | C151: Raming van de netto financiële investering | D151: Investissement financier net | G151: Estimation du coût financier brut
B152: 0 | G152: 0
A153: #VLOOKUP("5de stap : Schatting van de rendabiliteit van het project ";Translations;LANG;FALSE) | B153: 5de stap : Schatting van de rendabiliteit van het project | C153: 5de stap : Schatting van de rendabiliteit van het project | D153: Etape 5 : Estimer la rentabilité du projet | G153: Etape 5 : Estimer la rentabilité du projet
B154: 0 | G154: 0
A155: #VLOOKUP("Belastingtarief";Translations;LANG;FALSE) | B155: Belastingtarief | C155: Belastingtarief | D155: Taux d''imposition | G155: Taux d''imposition
A156: =IF(B156 <> 0, "#VLOOKUP(" & """" & B156 & """" & ";Translations;LANG;FALSE)", "") ->  | B156: 0 | G156: 0
A157: #VLOOKUP("Intrestvoet (zonder inflatie)";Translations;LANG;FALSE) | B157: Intrestvoet (zonder inflatie) | C157: Intrestvoet (zonder inflatie) | D157: Taux d'actualisation (hors inflation) | G157: Taux d'actualisation (hors inflation)
B158: 0 | G158: 0
A159: #VLOOKUP("Jaarlijkse netto-opbrengst van het fotovoltaïsche project ";Translations;LANG;FALSE) | B159: Jaarlijkse netto-opbrengst van het fotovoltaïsche project | C159: Jaarlijkse netto-opbrengst van het fotovoltaïsche project | D159: Gain annuel du projet photovoltaïque | G159: Gain annuel du projet photovoltaïque
B160: 0 | G160: 0
A161: #VLOOKUP("Pay-back periode van het project ";Translations;LANG;FALSE) | B161: Pay-back periode van het project | C161: Pay-back periode van het project | D161: Temps de Retour Simple | G161: Temps de Retour Simple
B162: 0 | G162: 0
A163: #VLOOKUP("Interne intrestvoet van het project (10 jaren)";Translations;LANG;FALSE) | B163: Interne intrestvoet van het project (10 jaren) | C163: Interne intrestvoet van het project (10 jaren) | D163: Taux de rentabilité interne après 10 ans | G163: Taux de rentabilité interne après 10 ans
A164: #VLOOKUP(" (20 jaren)";Translations;LANG;FALSE) | B164: (20 jaren) | C164: (20 jaren) | D164: 20 ans | G164: 20 ans
B165: 0 | G165: 0
A166: #VLOOKUP("Netto-actuele waarde van de winsten (10 jaren)";Translations;LANG;FALSE) | B166: =C166 -> Netto-actuele waarde van de winsten (10 jaren) | C166: Netto-actuele waarde van de winsten (10 jaren) | D166: Valeur actualisée nette des gains après 10 ans | G166: Valeur actualisée nette des gains après 10 ans
A167: #VLOOKUP(" (20 jaren)";Translations;LANG;FALSE) | B167: (20 jaren) | C167: (20 jaren) | D167: 20 ans | G167: 20 ans
B168: 0 | G168: 0
A169: #VLOOKUP("Dynamische pay-back periode";Translations;LANG;FALSE) | B169: Dynamische pay-back periode | C169: Dynamische pay-back periode | D169: Temps de retour dynamique | G169: Temps de retour dynamique
A170: #VLOOKUP("Bij gebrek aan informatie";Translations;LANG;FALSE) | B170: Bij gebrek aan informatie | C170: Bij gebrek aan informatie | D170: Par défaut | G170: Par défaut
A171: #VLOOKUP("€/jaar";Translations;LANG;FALSE) | B171: €/jaar | C171: €/jaar | D171: €/an | G171: €/an
A172: #VLOOKUP("kg CO2/MWu";Translations;LANG;FALSE) | B172: kg CO2/MWu | C172: kg CO2/MWu | D172: kg CO2/MWh | G172: kg CO2/MWh
B173: 0 | G173: 0
A174: #VLOOKUP("kg CO2/jaar";Translations;LANG;FALSE) | B174: kg CO2/jaar | C174: kg CO2/jaar | D174: kg CO2/an | G174: kg CO2/an
B175: 0 | G175: 0
A176: #VLOOKUP("kWu/jaar";Translations;LANG;FALSE) | B176: kWu/jaar | C176: kWu/jaar | D176: kWh/an | G176: kWh/an
A177: #VLOOKUP("€/kWu";Translations;LANG;FALSE) | B177: €/kWu | C177: €/kWu | D177: €/kWh | G177: €/kWh
A178: #VLOOKUP("/jaar";Translations;LANG;FALSE) | B178: /jaar | C178: /jaar | D178: /an | G178: /an
A179: #VLOOKUP("De gegarandeerde aankoop prijs van ELIA is 65€/GSC";Translations;LANG;FALSE) | B179: De gegarandeerde aankoop prijs van ELIA is 65€/GSC | C179: De gegarandeerde aankoop prijs van ELIA is 65€/GSC | D179: Le prix garanti par ELIA est de 65€/CV | G179: Le prix garanti par ELIA est de 65€/CV
A180: #VLOOKUP(" van de initiële investering";Translations;LANG;FALSE) | B180: van de initiële investering | C180: van de initiële investering | D180: de l'investissement initial | G180: de l'investissement initial
B181: 0 | G181: 0
A182: #VLOOKUP("€/jaar en per kWp";Translations;LANG;FALSE) | B182: €/jaar en per kWp | C182: €/jaar en per kWp | D182: €/an et par kWc | G182: €/an et par kWc
A183: #VLOOKUP("€ (incl. BTW)";Translations;LANG;FALSE) | B183: € (incl. BTW) | C183: € (incl. BTW) | D183: € (TVAC) | G183: € (TVAC)
A184: #VLOOKUP("€ (excl. BTW)";Translations;LANG;FALSE) | B184: € (excl. BTW) | C184: € (excl. BTW) | D184: € (HTVA) | G184: € (HTVA)
A185: #VLOOKUP("east_west";Translations;LANG;FALSE) | B185: east_west | C185: Montage op plat dak - helling 10° is ingesteld. Andere mogelijkheden niet toegelaten. | D185: Montage sur toiture plate et inclinaison de 10° est selectioné. Autres choix ne sont pas possibles. | G185: Montage sur toiture plate et inclinaison de 10° est selectioné. Autres choix ne sont pas possibles.
A186: #VLOOKUP("jaren";Translations;LANG;FALSE) | B186: jaren | C186: jaren | D186: ans | G186: ans
A187: #VLOOKUP("Zie Netto-actuele waarde";Translations;LANG;FALSE) | B187: Zie Netto-actuele waarde | C187: Zie Netto-actuele waarde | D187: Voir VAN | G187: Voir VAN
A188: #VLOOKUP("Jaar 15: Vervanging omvormer";Translations;LANG;FALSE) | B188: Jaar 15: Vervanging omvormer | C188: Jaar 15: Vervanging omvormer | D188: Année 15: remplacement onduleur | G188: Année 15: remplacement onduleur
A189: #VLOOKUP("Netto Actudele Waarde [€]";Translations;LANG;FALSE) | B189: Netto Actudele Waarde [€] | C189: Netto Actudele Waarde [€] | D189: Valeur Actualisée Nette [€] | G189: Valeur Actualisée Nette [€]
A190: #VLOOKUP("Niveau van investeringssteun";Translations;LANG;FALSE) | B190: Niveau van investeringssteun | C190: Niveau van investeringssteun | D190: Taux d'aide | G190: Taux d'aide
A191: #VLOOKUP("Geen";Translations;LANG;FALSE) | B191: Geen | C191: Geen | D191: Aucune | G191: Aucune
A192: #VLOOKUP("Micro- en kleine ondernemingen 45%";Translations;LANG;FALSE) | B192: Micro- en kleine ondernemingen 45% | C192: Micro- en kleine ondernemingen 45% | D192: Micro & Petite entreprise 45% | G192: Micro & Petite entreprise 45%
A193: #VLOOKUP("Middelgrote ondernemingen 35%";Translations;LANG;FALSE) | B193: Middelgrote ondernemingen 35% | C193: Middelgrote ondernemingen 35% | D193: Moyenne entreprise 35% | G193: Moyenne entreprise 35%
A194: #VLOOKUP("Grote ondernemingen 25%";Translations;LANG;FALSE) | B194: Grote ondernemingen 25% | C194: Grote ondernemingen 25% | D194: Grande entreprise 25% | G194: Grande entreprise 25%
A195: #VLOOKUP("Contactgegevens en aanvullende informatie";Translations;LANG;FALSE) | B195: Contactgegevens en aanvullende informatie | C195: Contactgegevens en aanvullende informatie | D195: Contact et informations complémentaires | G195: Contact et informations complémentaires
A196: #VLOOKUP("Overheid";Translations;LANG;FALSE) | B196: Overheid | C196: Overheid | D196: Pouvoir public | G196: Pouvoir public
A197: #VLOOKUP("Facilitatoren";Translations;LANG;FALSE) | B197: Facilitatoren | C197: Facilitatoren | D197: Facilitateurs | G197: Facilitateurs
A198: #VLOOKUP("Premies particulieren";Translations;LANG;FALSE) | B198: Premies particulieren | C198: Premies particulieren | D198: Primes particuliers | G198: =VLOOKUP(B198,Translations,LANG,FALSE) -> Primes particuliers
A199: #VLOOKUP("Premies professionelen";Translations;LANG;FALSE) | B199: Premies professionelen | C199: Premies professionelen | D199: Primes professionnels | G199: Primes professionnels
A200: #VLOOKUP("GSC'en";Translations;LANG;FALSE) | B200: GSC'en | C200: GSC'en | D200: Certificats verts | G200: Certificats verts
... 76 more rows

Sheet Comments (hidden)
A2: Each cell with a comment should have a named range with as name a value in this column.
A3: Named Range | B3: (Title) | C3: Tekst
A4: _Cmt_ConsumAct | C4: =VLOOKUP("CommentTotalStrm",Translations,LANG,FALSE) -> Encoder ici la consommation totale annuelle d'électricité consommée sur le site. --- Par défaut, le logiciel estime une consommation pour votre bâtiment basé sur les hypothèses suivantes: - Un ménage Bruxellois économe (4 personnes) consomme de l'ordre de 2036 kWh/m² - Pour le secteur tertiaire, consommation estimée à 100 kWh/(m²*an) (source: Bilan énergétque Bruxellois/bureaux) - une maison individuelle consomme de l'ordre de 3500 kwh/an - Pour d'autres affectations (hopitaux...), veuillez affiner cette consommation projetée en cellulle H14, Il est nécessaire d'insister sur le fait que, en réalité, le recours à l'énergie photovoltaïque ne se conçoit pas sans une réduction et l'optimisation de la consommation électrique. Ceci implique : * d'une façon générale, la conception et la construction - ou la rénovation - des bâtiments de façon à ce qu'ils aient des besoins énergétiques limités ; * l'utilisation d'appareils peu énergivores ; * un fonctionnement rationnel dans le temps. Une telle démarche a pour conséquence de réduire très sensiblement la consommation moyenne d'un ménage, d'une institution ou d'une entreprise, et donc la taille du système photovoltaïque capable de la couvrir.
A5: _Cmt_PrstTool | C5: =VLOOKUP("CommentPrstTool",Translations,LANG,FALSE) -> Présentation de l’outil : Cet outil est un calculateur Excel. Il permet à un utilisateur de rencontrer les éléments entrant en compte dans le dimensionnement et le bilan financier d’un projet photovoltaïque. Il aide à faire percevoir l’intérêt de cette technique afin de faciliter et démultiplier l’investissement dans la production d’électricité solaire. Cet outil d’aide est destiné aux particuliers, responsables techniques, gestionnaires de bâtiments, investisseurs, architectes, maîtres d’ouvrages, ingénieurs conseils, responsables énergies, facilitateurs ou décideur politique. Plus précisément, l’outil s’adresse à toutes personnes disposant de surfaces pouvant être valorisée par la production d’énergie verte. Cependant, les résultats obtenus ne sont qu'une première approximation. Ils ne donnent qu'une indication quant à la suite ou non du projet, à savoir la commande d'une étude de faisabilité dans les "Règles de l'art" à une entreprise ou un bureau d'études compétent, et non la commande de l'équipement !
A6: _Cmt_Peak | C6: =VLOOKUP("CommentPeak",Translations,LANG,FALSE) -> La puissance crête d'un module ou d'une installation photovoltaïque est la puissance électrique délivrée dans des conditions standard de test (STC) : - module présenté perpendiculairement aux rayons du soleil - ensoleillement nominal de 1 000 Watt / m² - spectre solaire normalisé AM = 1,5 - température de cellule de + 25 °C.
A7: _Cmt_Estimat | C7: =VLOOKUP("CommentEstimat",Translations,LANG,FALSE) -> L'estimation de l'energie produite tient compte de la surface, de la technologie, du type de montage, de l'orientation et de l'inclinaison.
A8: _Cmt_FirstYR | C8: =VLOOKUP("Het eerste jaar",Translations,LANG,FALSE) -> La première année
A9: _Cmt_CoutEst | C9: =VLOOKUP("CommentEstCout",Translations,LANG,FALSE) -> L'estimation du prix à payer tient compte de la surface, de la technologie, du type de montage et de la TVA. L'investissement initial pour une installation photovoltaïque comprend les modules photovoltaïques, le ou les convertisseurs DC/AC, les composants électriques de sécurité, les câbles électriques et la pose. Cette estimation ne prend pas en compte les frais de raccordement au réseau électrique. Plus d'informations : www.sibelga.be
A10: _Cmt_TypeBld | C10: =VLOOKUP("CommentTypeBatPrime",Translations,LANG,FALSE) -> Le niveau énergétique conditionne l'octroi de la prime. Cette prime s'élève de 0,25 à 1 euro/Watt-crête en fonction de la catégorie de revenu à laquelle vous appartenez et à condition que le bâtiment soit passif ou basse énergie. La prime est plafonnée à 30 % de l'investissement.
A11: _Cmt_SurfToi | C11: =VLOOKUP("CommentHellendeDaken",Translations,LANG,FALSE) -> Pour des toitures inclinées, la surface utile est celle orientée vers le Sud en retirant les zones d’ombrages, les fenêtres de toits et autres obstacles. Pour les toitures plates, la surface utile est généralement diminuée de 10 à 15% pour tenir compte des bords et acrotère. En cas de situation compliquée, un bon relevé de masque s'impose pour quantifier l'impact dû à tel ou tel obstacle.
A12: _Cmt_CV | C12: =VLOOKUP("CommentCV",Translations,LANG,FALSE) -> Le coefficient multiplicateur des CV est : - Si Pélec > 5kWC alors coeff. = 1,32 - Si Pélec ≤ 5kWc alors coeff. = 1,65 Plus d'infos: https://www.brugel.brussels/actualites/coefficients-multiplicateurs-appliques-au-photovoltaique-et-a-la-cogeneration-227
A13: _Cmt_primes | C13: =VLOOKUP("Commentprimes",Translations,LANG,FALSE) -> Pour une entreprise et selon certaines conditions vous pouvez bénéficier d'une aide pour les investissements environnementaux : économie d'énergie et la production d'énergie à partir de sources d'énergies renouvelables. Plus d'infos: https://www.1819.brussels/fr/subsides/aide-pour-les-investissements-environnementaux-economie-denergie-et-la-production-denergie

Sheet choix-multiples
Q4: Résultats:
Q6: Installation technique
Q7: Puissance installée: | V7: =EnergieProduite_kWc_m²!H6 -> 0 | W7: kWc
Q8: Surface de capteur à installer | V8: =IF(Tool!#REF!=EnergieProduite_kWc_m²!H6,Tool!E46,Tool!#REF!*1000/(EnergieProduite_kWc_m²!C25*(1+EnergieProduite_kWc_m²!F29*0.01)*EnergieProduite_kWc_m²!F24)) ->  | W8: m²
Q9: Ce logiciel ne calcule pas l'impact d'éventuelles ombres sur la production des panneaux.Il est important de vérifier s'il y a, à un ou plusieur moments de la journée, un ou des obstacles entre le soleil et les panneaux solaires. 10% d'ombrage sur le panneau et toute la puissance électrique s'écroule !
Q10: Bilan énergétique
Q11: Estimation de l'énergie utile produite | V11: =EnergieProduite_kWc_m²!#REF! ->  | W11: kWh/an
Q12: Energie primaire économisée | V12: =V11*2.5 ->  | W12: kWh/an
Q14: Bilan environnemental
Q15: Economie de CO2 | V15: =Page_calcul!G54*'choix-multiples'!G92/1000000/30 -> 2.764305032 | W15: tonnes/an
Q16: Matière radioactive évitée | V16: =Page_calcul!G54*0.0034/30 -> 23.82417518 | W16: g/an
Q18: Coût financier brut
Q19: Estimation du coût financier brut : | V19: =Calcul_CoûtBrut_m²!#REF! ->  | W19: € (TVAC)
Q20: Devis donné par un installateur : | W20: € (TVAC)
Q21: Coût de l'installation par Wc | V21: =IF(V20="",V19/V7/1000,V20/V7/1000) ->  | W21: €/Wc
Q22: Gains financiers
Q23: Primes (2008) pour ce projet | V23: =Page_calcul!G9 -> 2500 | W23: €
Q24: Réductions fiscales (dépenses 2008) | V24: =Page_calcul!G12 -> 0 | W24: €
I25: =EnergieProduite_kWc_m²!D29 -> 15 | Q25: Rentrée en certificats verts (2008) | T25: =Certificats_Verts!J57 -> 17.428572 | U25: =Certificats_Verts!K57 -> CV/an pour 10 ans -------> | V25: =Certificats_Verts!E57 -> 1481.42862 | W25: €/an
Q26: Economie d'électricité | V26: =Page_calcul!H22 -> 3123.4 | W26: €/an
Q27: Autres primes | W27: €
H41: Par défaut, valeurs de l'institut
C43: Facteur de production solaire | H43: =facteurSolair -> 930 | I43: kWh/(kWc*an)
C45: Valeur d'un Certificat Vert (sur le marché) : | H45: 85 | I45: €
C47: Tarif de l'électricité en journée : | H47: =VLOOKUP('choix-multiples'!F98,Coût_Net!D4:J9,7,FALSE) -> 0.2 | I47: €/kWh
C49: Tarif de rachât de l'électricité : | H49: 0.05 | I49: €/kWh
AG50: =(123+111+112+164+92+104+102+32)/8 -> 105
C51: Augmentation du prix de l'électricité : | H51: 0.0587
C53: Taux d''imposition de la société | H53: 33.99 | I53: %
C55: Assurance Vol / Dégâts : | H55: =Coût_Net!Q36 -> 18.51 | I55: €/an et par kWc
C57: Entretien : | H57: 0.01 | I57: % de l'investissement inititial /an
C59: Aides régionales | H59: =IF(F98=1,0.25,0) -> 0
S68: Conso élec moy (hors transp/comm)
R69: 2005 | S69: =(102+177+137+99+41+85)/6 -> 106.8333333 | T69: =(102+177+137+99+41+85+313)/7 -> 136.2857143
R70: 2010 | S70: =(109+150+128+96+33+139)/6 -> 109.1666667 | T70: =(109+150+128+96+33+139+354)/7 -> 144.1428571
S71: =S70/S69 -> 1.021840874 | T71: =T70/T69 -> 1.057651992
C82: =IF(Tool!E24="",Tool!F24,Tool!E24) -> 788000
G91: Emission de CO2
C92: Régions : | F92: 1 | G92: =VLOOKUP(F92,F93:G96,2,FALSE) -> 394.5 | H92: kgCO2/MWh évité
C93: Région Bruxelles Capitale | F93: 1 | G93: 394.5 | H93: kgCO2/MWh évité
C98: Type de secteur : | F98: 2 | G98: Grossière estimation des consommations (kWh/an)
C99: =VLOOKUP("Tertiaire sector",Translations,LANG,FALSE) -> Secteur tertiaire | F99: 1 | G99: =H99*Tool!$G$21 -> 90000 | H99: 90 | I99: kWh/m² | J99: =VLOOKUP("Vloeroppervlakte =",Translations,LANG,FALSE) -> Surface de planchers = | O99: m² | AD99: "" | AE99: ""
C100: =VLOOKUP("Collectieve huisvesting",Translations,LANG,FALSE) -> Logement collectif | F100: 2 | G100: =H100*Tool!$G$21 -> 788000 | H100: 788 | I100: kWh/logement | J100: =VLOOKUP("Aantal woningen =",Translations,LANG,FALSE) -> Nombre de logements = | O100: =VLOOKUP("woningen",Translations,LANG,FALSE) -> Logements | R100: * Encoder le nombre d'habitations se partagent l'investissement et les bénéfices du système photovoltaïque. | AD100: Duur van bezigheid van de woning = | AE100: jaren
C101: =VLOOKUP("Huis",Translations,LANG,FALSE) -> Maison individuelle | F101: 3 | G101: =H101*Tool!$G$21 -> 3500000 | H101: 3500 | I101: kWh/m² | J101: ="" ->  | O101: ="" ->  | AD101: Duur van bezigheid van de woning = | AE101: jaren
C102: =VLOOKUP("Andere",Translations,LANG,FALSE) -> Autre | F102: 4 | G102: =H102*Tool!$G$21 -> 0 | H102: 0 | I102: kWh/m² | J102: ="" ->  | O102: ="" -> 
C103: PME | E103: PME | F103: 5 | G103: =H103*Tool!$G$21 -> 70000 | H103: 70 | I103: kWh/m² | J103: =VLOOKUP("Vloeroppervlakte =",Translations,LANG,FALSE) -> Surface de planchers = | O103: m² | R103: Télécharger le Vade-mecum URE du logement collectif : http://www.ibgebim.be/francais/pdf/Energie/07_Vademecum_log_col.pdf
C104: Grande entreprise | E104: Grande entreprise | F104: 6 | G104: =H104*Tool!$G$21 -> 105000 | H104: 105 | I104: kWh/m² | J104: =VLOOKUP("Vloeroppervlakte =",Translations,LANG,FALSE) -> Surface de planchers = | O104: m²
C106: Prime : | J106: 2
C107: =VLOOKUP("Categorie basispremie",Translations,LANG,FALSE) -> Catégorie de base | J107: 1
C108: =VLOOKUP("Categorie gemiddeld inkomen",Translations,LANG,FALSE) -> Catégorie revenus moyens | J108: 2
C109: =VLOOKUP("Categorie laag inkomen",Translations,LANG,FALSE) -> Catégorie faibles revenus | J109: 3
C111: Type d'assujettissement à la TVA : | H111: 2
C112: =VLOOKUP("BTW-plichtig of vrijgesteld van BTW",Translations,LANG,FALSE) -> Assujetti ou exempté de TVA | H112: 1 | I112: 0 | K112: %
C113: =VLOOKUP("BTW-tarief van 6%",Translations,LANG,FALSE) -> TVA à 6% | H113: 2 | I113: 6 | K113: %
C114: =VLOOKUP("BTW-tarief van 21%",Translations,LANG,FALSE) -> TVA à 21% | H114: 3 | I114: 21 | K114: %
C116: Etes-vous une personne morale ou un pouvoir public ? | H116: 2
C117: =VLOOKUP("Ja",Translations,LANG,FALSE) -> Oui | H117: 1
C118: =VLOOKUP("Nee",Translations,LANG,FALSE) -> Non | H118: 2
C120: Catégorie de revenu | H120: 1
C121: =VLOOKUP("Categorie basispremie",Translations,LANG,FALSE) -> Catégorie de base | H121: 1
C122: =VLOOKUP("Categorie gemiddeld inkomen",Translations,LANG,FALSE) -> Catégorie revenus moyens | H122: 2 | U122: Rendement des différentes technologies
C123: =VLOOKUP("Categorie laag inkomen",Translations,LANG,FALSE) -> Catégorie faibles revenus | H123: 3
C125: Type de technologie : | G125: 1
G126: Rendement de conversion associé : | I126: Dégression | L126: Coût supplémentaire par rapport au prix de base :
D127: =VLOOKUP("Polykristallijn (silicium)",Translations,LANG,FALSE) -> Polycristallin | F127: 1 | G127: 15 | H127: % | I127: 0.005 | L127: 0 | M127: %
D128: =VLOOKUP("Monokristallijn (silicium)",Translations,LANG,FALSE) -> Monocristallin | F128: 2 | G128: 16.5 | H128: % | I128: 0.005 | L128: 0 | M128: %
D129: =VLOOKUP("Monokristallijn (silicium) hoog rendement",Translations,LANG,FALSE) -> Monocristallin haute performance | F129: 3 | G129: 19 | H129: % | I129: 0.005 | L129: 10 | M129: %
D130: =VLOOKUP("Weet niet",Translations,LANG,FALSE) -> Par défaut | F130: 7 | G130: 13 | H130: % | I130: 0.005 | L130: 0 | M130: %
C132: Type de montage : | F132: 2 | G132: =VLOOKUP(F132,C133:E137,3,) -> Flat roof
E133: Mounting type | G133: Facteur d'efficacité associé : | J133: Facteur coût lié au type d'installation :
C134: 1 | D134: =VLOOKUP("mont_held",Translations,LANG,FALSE) -> En surimposition sur une toiture inclinée | E134: Superimposed on an inclined roof | F134: 1 | G134: 100 | H134: % | L134: 0 | M134: %
C135: 2 | D135: =VLOOKUP("Plat dak",Translations,LANG,FALSE) -> Toiture plate | E135: Flat roof | F135: 2 | G135: 100 | H135: % | L135: 0 | M135: %
C136: 3 | D136: =VLOOKUP("plat dak oost west",Translations,LANG,FALSE) -> Toiture plate montage dos-à-dos Est-Ouest 10° | E136: Flat roof back-to-back East-West | F136: 3 | G136: 100 | H136: % | L136: 0 | M136: %
C137: 4 | D137: =VLOOKUP("Geïntegreerd in een hellend dak",Translations,LANG,FALSE) -> En intégré dans une toiture inclinée | E137: Built-in inclined roof | F137: 4 | G137: 90 | H137: % | L137: 20 | M137: %
C139: Orientation et inclinaison des panneaux : | F139: 3 | G139: =VLOOKUP(F139,C141:E146,3,) -> Sud
F140: Inclinaison (°)
D141: =VLOOKUP("Richting",Translations,LANG,FALSE) -> Orientation | E141: Orientation | F141: 0° (horizontal) | G141: 15° | H141: 25° | I141: 35° | J141: 40° | K141: 45° | L141: 50° | M141: 70° | N141: 90° (vertical)
C142: 1 | D142: =VLOOKUP("Oosten",Translations,LANG,FALSE) -> Est | E142: Est | F142: 0.88 | G142: 0.87 | H142: 0.85 | I142: 0.83 | J142: 0.8 | K142: 0.79 | L142: 0.77 | M142: 0.65 | N142: 0.5
C143: 2 | D143: =VLOOKUP("Zuidoosten",Translations,LANG,FALSE) -> Sud-est | E143: Sud-Est | F143: 0.88 | G143: 0.93 | H143: 0.95 | I143: 0.95 | J143: 0.94 | K143: 0.93 | L143: 0.92 | M143: 0.81 | N143: 0.64
C144: 3 | D144: =VLOOKUP("Zuiden",Translations,LANG,FALSE) -> Sud | E144: Sud | F144: 0.88 | G144: 0.96 | H144: 0.99 | I144: 1 | J144: 0.99 | K144: 0.985 | L144: 0.98 | M144: 0.87 | N144: 0.68
C145: 4 | D145: =VLOOKUP("Zuidwesten",Translations,LANG,FALSE) -> Sud-ouest | E145: Sud-Ouest | F145: 0.88 | G145: 0.93 | H145: 0.95 | I145: 0.95 | J145: 0.94 | K145: 0.93 | L145: 0.92 | M145: 0.81 | N145: 0.64
C146: 5 | D146: =VLOOKUP("Westen",Translations,LANG,FALSE) -> Ouest | E146: Ouest | F146: 0.88 | G146: 0.87 | H146: 0.85 | I146: 0.82 | J146: 0.8 | K146: 0.79 | L146: 0.76 | M146: 0.65 | N146: 0.5
F147: Source :
F148: PVGIS (Geographical Assessment of Solar Energy Resource and Photovoltaic Technology, http://sunbird.jrc.it/pvgis/apps/pvest.php, données valables pour Philippeville)
F149: http://www.ef4.be/fr/photovoltaique/aspects-techniques/orientation-structure.html | P149: '+ extrapolation pour 40° et 45°
C150: Superficie :
G151: Facteur coût associé à la superficie :
D152: 0 à 19m² | G152: 260 | I152: €/m²
D153: 20 à 99 m² | G153: =$G$152+($G$152*L153/100) ->  | I153: €/m² | L153: =-Calcul_CoûtBrut_m²!#REF!*100 ->  | M153: %
D154: 100 à 499 m² | G154: =$G$152+($G$152*L154/100) ->  | I154: €/m² | L154: =-Calcul_CoûtBrut_m²!#REF!*100 ->  | M154: %
D155: 500 à 999 m² | G155: =$G$152+($G$152*L155/100) ->  | I155: €/m² | L155: =-Calcul_CoûtBrut_m²!#REF!*100 ->  | M155: %
D156: 1000 à 10000 m² | G156: =$G$152+($G$152*L156/100) ->  | I156: €/m² | L156: =-Calcul_CoûtBrut_m²!#REF!*100 ->  | M156: %
C158: Ombre portée : | H158: 2
D159: Aucun obstacle n'apporte de l'ombrage | H159: 1
D160: Obstacle apportant de l'ombrage | H160: 2 | J160: Attention !
C162: A voir également : http://www.energiesparen.be/energiewinst/pv.php
D166: Degression -> déplacé vers Type de technologie
E174: 1
D175: =VLOOKUP("Geen",Translations,LANG,FALSE) -> Aucune | E175: 1 | F175: 0
D176: =VLOOKUP("Micro- en kleine ondernemingen 45%",Translations,LANG,FALSE) -> Micro & Petite entreprise 45% | E176: 2 | F176: 0.45
D177: =VLOOKUP("Middelgrote ondernemingen 35%",Translations,LANG,FALSE) -> Moyenne entreprise 35% | E177: 3 | F177: 0.35
D178: =VLOOKUP("Grote ondernemingen 25%",Translations,LANG,FALSE) -> Grande entreprise 25% | E178: 4 | F178: 0.25
C181: Inclinaison des panneaux: | F181: 1 | G181: =VLOOKUP(F181,C182:E185,3,) -> 15
E182: Tilting
C183: 1 | D183: 15° | E183: 15
C184: 2 | D184: 25° | E184: 25
C185: 3 | D185: 35° | E185: 35

Sheet Calculs surface (hidden)
A1: Ratio entre la surface de toiture disponible et la surface de capteur installable selon l'inclinaison
B2: Inclinaison | D2: Facteur F
A3: ='choix-multiples'!E134 -> Superimposed on an inclined roof | C3: =A3 -> Superimposed on an inclined roof | D3: 0.8
A4: ='choix-multiples'!E137 -> Built-in inclined roof | C4: =A4 -> Built-in inclined roof | D4: 0.8
A5: ='choix-multiples'!E135 -> Flat roof | B5: ='choix-multiples'!E185 -> 35 | C5: =A5&"-"&B5 -> Flat roof-35 | D5: 0.3
A6: =A5 -> Flat roof | B6: ='choix-multiples'!E184 -> 25 | C6: Flat roof-25 | D6: 0.35
A7: =A6 -> Flat roof | B7: ='choix-multiples'!E183 -> 15 | C7: Flat roof-15 | D7: 0.43
A8: ='choix-multiples'!E136 -> Flat roof back-to-back East-West | C8: =A8 -> Flat roof back-to-back East-West | D8: 0.61
A11: Configuration
A12: Mounting type | B12: =MountingTypeValue -> Flat roof
A13: Tilting value | B13: =TiltingValue -> 15
A14: East-West mounting?
A16: Total configuration | B16: Facteur F
A17: =IF(OR(B12='choix-multiples'!E134,B12='choix-multiples'!E137,B12='choix-multiples'!E136),B12,IF(AND(B12='choix-multiples'!E135,B14=TRUE),C8,B12&"-"&B13)) -> Flat roof-15 | B17: =VLOOKUP(A17,C3:D8,2,FALSE) -> 0.43

Sheet Facteur solaire
B1: Orientation | C1: Inclinaison (°) | D1: Production (kWh/kWc) | E1: Max plein sud | F1: 920
A2: =B2&"-"&C2 -> Sud-0 | B2: Sud | C2: 0
A3: =B3&"-"&C3 -> Sud-10 | B3: Sud | C3: 10
A4: Sud-15 | B4: Sud | C4: 15 | D4: =K27*maxsud35 -> 892.4
A5: Sud-25 | B5: Sud | C5: 25 | D5: =L27*maxsud35 -> 910.8 | H5: Orientation des panneaux :
A6: Sud-35 | B6: Sud | C6: 35 | D6: =M27*maxsud35 -> 920 | J6: Inclinaison (°)
A7: Sud-40 | B7: Sud | C7: 40 | J7: =I21 -> 0 | K7: =I23 -> 5 | L7: =I24 -> 0 | M7: =I25 -> 1 | N7: =I26 -> 2 | O7: =I27 -> 3 | P7: =I28 -> 4 | Q7: =I29 -> 5 | R7: 9
A8: Sud-45 | B8: Sud | C8: 45 | I8: ='choix-multiples'!K97 -> 0 | J8: =VLOOKUP($D$49,$D$51:$N$57,2,FALSE) ->  | K8: =VLOOKUP($D$49,$D$51:$N$57,3,FALSE) ->  | L8: =VLOOKUP($D$49,$D$51:$N$57,4,FALSE) ->  | M8: =VLOOKUP($D$49,$D$51:$N$57,5,FALSE) ->  | N8: =VLOOKUP($D$49,$D$51:$N$57,6,FALSE) ->  | O8: =VLOOKUP($D$49,$D$51:$N$57,7,FALSE) ->  | P8: =VLOOKUP($D$49,$D$51:$N$57,8,FALSE) ->  | Q8: =VLOOKUP($D$49,$D$51:$N$57,9,FALSE) ->  | R8: =VLOOKUP($D$49,$D$51:$N$57,10,FALSE) -> 
A9: Sud-50 | B9: Sud | C9: 50
A10: Sud-70 | B10: Sud | C10: 70 | H10: Est | I10: 1 | J10: 0.87 | K10: 0.88 | L10: 0.87 | M10: 0.84 | N10: 0.82 | O10: 0.8 | P10: 0.78 | Q10: 0.69 | R10: 0.89
A11: Sud-Est-0 | B11: Sud-Est | C11: 0 | H11: Sud-est | I11: 2 | J11: 0.87 | K11: 0.95 | L11: 0.96 | M11: 0.96 | N11: 0.95 | O11: 0.94 | P11: 0.92 | Q11: 0.82 | R11: 0.94
A12: Sud-Est-10 | B12: Sud-Est | C12: 10 | H12: Sud | I12: 3 | J12: 0.87 | K12: 0.97 | L12: 0.99 | M12: 1 | N12: 1 | O12: 0.985 | P12: 0.97 | Q12: 0.87 | R12: 0.96
A13: Sud-Est-15 | B13: Sud-Est | C13: 15 | D13: =K26*F1 -> 874 | H13: Sud-ouest | I13: 4 | J13: 0.87 | K13: 0.95 | L13: 0.96 | M13: 0.96 | N13: 0.96 | O13: 0.95 | P13: 0.93 | Q13: 0.84 | R13: 0.94
A14: Sud-Est-25 | B14: Sud-Est | C14: 25 | D14: =L26*maxsud35 -> 883.2 | H14: Ouest | I14: 5 | J14: 0.87 | K14: 0.88 | L14: 0.86 | M14: 0.84 | N14: 0.82 | O14: 0.8 | P14: 0.78 | Q14: 0.68 | R14: 0.89
A15: Sud-Est-35 | B15: Sud-Est | C15: 35 | D15: =M26*maxsud35 -> 883.2 | H15: Oost west | I15: 6 | J15: 0.92 | K15: 0.92 | L15: 0.92 | M15: 0.92 | N15: 0.92 | O15: 0.92 | P15: 0.92 | Q15: 0.92 | R15: 0.92
A16: Sud-Est-40 | B16: Sud-Est | C16: 40
A17: Sud-Est-45 | B17: Sud-Est | C17: 45 | H17: Inclinaison : | J17: Facteur d'efficacité associé à l'orientation et l'inclinaison
A18: Sud-Est-50 | B18: Sud-Est | C18: 50
A19: Sud-Est-70 | B19: Sud-Est | C19: 70
A20: Sud-Ouest-0 | B20: Sud-Ouest | C20: 0 | H20: Orientation des panneaux :
A21: Sud-Ouest-10 | B21: Sud-Ouest | C21: 10 | J21: Inclinaison (°)
A22: Sud-Ouest-15 | B22: Sud-Ouest | C22: 15 | D22: =K28*maxsud35 -> 874 | K22: 15 | L22: 25 | M22: 35
A23: Sud-Ouest-25 | B23: Sud-Ouest | C23: 25 | D23: =L28*maxsud35 -> 883.2 | I23: 5 | K23: 0.88 | L23: 0.86 | M23: 0.84
A24: Sud-Ouest-35 | B24: Sud-Ouest | C24: 35 | D24: =M28*maxsud35 -> 883.2
A25: Sud-Ouest-40 | B25: Sud-Ouest | C25: 40 | H25: Est | I25: 1 | K25: 0.88 | L25: 0.87 | M25: 0.84
A26: Sud-Ouest-45 | B26: Sud-Ouest | C26: 45 | H26: Sud-Est | I26: 2 | K26: 0.95 | L26: 0.96 | M26: 0.96
A27: Sud-Ouest-50 | B27: Sud-Ouest | C27: 50 | H27: Sud | I27: 3 | K27: 0.97 | L27: 0.99 | M27: 1
A28: Sud-Ouest-70 | B28: Sud-Ouest | C28: 70 | H28: Sud-Ouest | I28: 4 | K28: 0.95 | L28: 0.96 | M28: 0.96
A29: Est-0 | B29: Est | C29: 0 | H29: Ouest | I29: 5 | K29: 0.88 | L29: 0.86 | M29: 0.84
A30: Est-10 | B30: Est | C30: 10 | H30: Oost west | I30: 6 | K30: 0.92 | L30: 0.92 | M30: 0.92
A31: Est-15 | B31: Est | C31: 15 | D31: =K25*maxsud35 -> 809.6
A32: Est-25 | B32: Est | C32: 25 | D32: =L25*maxsud35 -> 800.4 | H32: Inclinaison : | J32: Facteur d'efficacité associé à l'orientation et l'inclinaison
A33: Est-35 | B33: Est | C33: 35 | D33: =M25*maxsud35 -> 772.8
A34: Est-40 | B34: Est | C34: 40 | H34: Type montage | I34: =MountingTypeValue -> Flat roof
A35: Est-45 | B35: Est | C35: 45 | H35: Orientation | I35: =IF(I34='choix-multiples'!E136,B47,OrientationValue) -> Sud
A36: Est-50 | B36: Est | C36: 50
A37: Est-70 | B37: Est | C37: 70 | H37: Tilting value | I37: =IF(I34='choix-multiples'!E136,C47,TiltingValue) -> 15
A38: Ouest-0 | B38: Ouest | C38: 0
A39: Ouest-10 | B39: Ouest | C39: 10 | H39: =D1 -> Production (kWh/kWc) | I39: =VLOOKUP(I40,A:D,4,FALSE) -> 892.4
A40: Ouest-15 | B40: Ouest | C40: 15 | D40: =K29*maxsud35 -> 809.6 | H40: Combinaison Orientation-inclinaison | I40: =I35&"-"&I37 -> Sud-15
A41: Ouest-25 | B41: Ouest | C41: 25 | D41: =L29*maxsud35 -> 791.2
A42: Ouest-35 | B42: Ouest | C42: 35 | D42: =M29*maxsud35 -> 772.8
A43: Ouest-40 | B43: Ouest | C43: 40
A44: Ouest-45 | B44: Ouest | C44: 45
A45: Ouest-50 | B45: Ouest | C45: 50
A46: Ouest-70 | B46: Ouest | C46: 70
A47: =B47&"-"&C47 -> Est-Ouest-10 | B47: Est-Ouest | C47: 10 | D47: 820

Sheet Page_calcul
C2: Page de calcul de l'amortissement d'une installation solaire photovoltaïque
I3: Durée de vie économique | J3: 30 | K3: ans
C4: Investissement total | G4: =IF(Tool!E104<1,Tool!F104,Tool!E104) -> 15245.98 | H4: € | I4: Consommation projetée | J4: =IF(Tool!E24="",Tool!F24,Tool!E24) -> 788000 | K4: kWh/an | U4: Temps de retour (ans) | V4: =AE52 -> 5.401077795
C5: Montant Primes énergies ou Subsides | G5: =Coût_Net!E36*100 -> 16.39776518 | H5: % | I5: Taux d'imposition | J5: =IF(Tool!E116="",Tool!F116,Tool!E116) -> 0 | U5: TRI (10 ans) | V5: =AB31 -> 0.1400347424
D6: Prime énergie ou subside possible | G6: =G4*(G5/100) -> 2500 | H6: € | I6: Augmentation prix électricité | J6: =IF(Tool!E68="",Tool!F68,Tool!E68) -> 0.0587 | U6: TRI (20 ans) | V6: =AB41 -> 0.1785735948
D8: Conditions plafonnantes | G8: =IF('choix-multiples'!J106=1,0,Coût_Net!F36) -> 4573.794 | H8: €
D9: Primes énergies réelles | G9: =IF(G6<G8,G6,G8) -> 2500 | H9: € | I9: Investissement brut | J9: =IF(Tool!E104="",Tool!F104,Tool!E104) -> 15245.98 | U9: Coût de remplacement de l'onduleur | V9: =0.07*G14 -> 1067.2186 | W9: à l'année | X9: 15
C10: Aides régionales entreprises | G10: =J12 -> 0 | H10: €
C11: Primes réelles | H11: €
C12: Réduction d'impôt/déduction fiscale | G12: =Déductions_fiscales!U23 -> 0 | H12: € | I12: Aides régionales | J12: 0
C13: Investissement primes déduites | G13: =G4-Tool!E106 -> 15245.98 | H13: €
C14: Investissement net | G14: =Tool!E112 -> 15245.98 | H14: €
C17: Charge Financière par an en ... ans (K+int) sur le TOTAL de l'investissement | L17: =Coût_Net!N36 -> 0 | M17: €/an
C18: Durée de l'amortissement fiscale (année) | F18: Consommation électricque | G18: Production électrique | H18: Electricité consommée vs injectée | J18: Prix électricité | L18: Dépenses | O18: Revenues/économies | U18: Aspects fiscaux | X18: Totaux
H19: Taux autoconsommation | I19: =Tool!E70 -> 0.35 | J19: Achat (€/kWh TVAC) | K19: Vente (€/kWh TVAC) | L19: Investissement | M19: Entretien | N19: Assurance | O19: Certificats Verts (€/an) | P19: Economie sur facture | Q19: Vente électricité | R19: Economies Isoc | S19: Primes | U19: Déduction/réductions d'Impôts | V19: Amortissement | W19: Balance | X19: Dépenses | Y19: Revenus | Z19: Flux de trésorerie | AA19: VAN | AB19: TRI | AC19: Temps de retour
B20: 1 | C20: Année | D20: kWc installés | E20: m² | F20: kWh/an | G20: kWh/an | H20: Autoconsommation (kWh/an) | I20: Injection (kWh/an) | J20: =IF(Tool!E64="",Tool!F64,Tool!E64) -> 0.3637358491 | K20: =IF(Tool!E66="",Tool!F66,Tool!E66) -> 0.04 | L20: € | M20: =IF(Tool!E97="",Tool!F97,Tool!E97) -> 225 | N20: 0 | O20: €/an | P20: €/an | Q20: €/an | S20: € | T20: Remboursement (K+I) | U20: € | V20: 10 | AA20: =IF(Tool!E118="",Tool!F118,Tool!E118) -> 0 | AB20: Gains annuel sur temps de vie (€)
C21: 0 | L21: =G13 -> 15245.98 | X21: =SUM(L21:N21) -> 15245.98 | Y21: =SUM(O21:S21) -> 0 | Z21: =Y21-X21-W21 -> -15245.98 | AA21: =Z21 -> -15245.98
B22: =IF(#REF!<0,0,1) ->  | C22: 1 | D22: =_cmt_peak_used -> 10 | E22: =SurfaceUsed -> 47.76119403 | F22: =J4 -> 788000 | G22: =Tool!$E$52 -> 8924 | H22: =$I$19*G22 -> 3123.4 | I22: =G22-H22 -> 5800.6 | J22: =J20 -> 0.3637358491 | K22: =K20 -> 0.04 | L22: 0 | M22: 0 | N22: =N20*D22 -> 0 | O22: =Certificats_Verts!$E$57*G22/$G$22 -> 1481.42862 | P22: =H22*J22 -> 1136.092551 | Q22: =I22*K22 -> 232.024 | R22: =Coût_Net!P36 -> 0 | S22: =G11 -> 0 | T22: =L17 -> 0 | U22: =IF(OR('choix-multiples'!$F$98=1,'choix-multiples'!$F$98=4),Tool!E108,MIN(Tool!E108,3680)) -> 0 | V22: =IF('choix-multiples'!$F$98=1,IF(C22<=$V$20,$L$21/$V$20,0),0) -> 0 | W22: =IF(OR('choix-multiples'!$F$98=1,'choix-multiples'!$F$98=4),J5*(O22+P22+Q22-L22-M22-N22-U22-V22),-U22) -> 0 | X22: =SUM(L22:N22) -> 0 | Y22: 2849.545171 | Z22: =Y22-X22-W22 -> 2849.545171 | AA22: =NPV($AA$20,$Z$22:Z22)+$Z$21 -> -12396.43483 | AB22: =IRR($Z$21:Z22,-0.8) -> -0.8130953097 | AC22: 0 | AD22: =AC22*C22 -> 0 | AE22: =0-(0-C22)/(AA21*AA22)*AA21 -> -8.066835455e-05
B23: =IF(#REF!<0,0,1) ->  | C23: 2 | D23: 10 | E23: =$E$22 -> 47.76119403 | F23: =$F$22 -> 788000 | G23: =IF(C23<=P64,G22,G22*(1-$M$64)) -> 8879.38 | H23: =$I$19*G23 -> 3107.783 | I23: =G23-H23 -> 5771.597 | J23: =J22*(1+$J$6) -> 0.3850871434 | K23: =K22*(1+$J$6) -> 0.042348 | L23: 0 | M23: =IF(C23=X$9,V$9+M$20,M$20) -> 225 | N23: =N22 -> 0 | O23: =Certificats_Verts!$E$57*G23/$G$22 -> 1474.021477 | P23: =H23*J23 -> 1196.767278 | Q23: =I23*K23 -> 244.4155898 | R23: =R22 -> 0 | T23: =T22 -> 0 | U23: =IF(OR('choix-multiples'!$F$98=1,'choix-multiples'!$F$98=4),0,MIN(Tool!$E$108-Page_calcul!U22,3680)) -> 0 | V23: =IF('choix-multiples'!$F$98=1,IF(C23<=$V$20,$L$21/$V$20,0),0) -> 0 | W23: =IF(OR('choix-multiples'!$F$98=1,'choix-multiples'!$F$98=4),J5*(O23+P23+Q23-L23-M23-N23-U23-V23),-U23) -> 0 | X23: 225 | Y23: 2915.204344 | Z23: 2690.204344 | AA23: =NPV($AA$20,$Z$22:Z23)+$Z$21 -> -9706.230485 | AB23: =IRR($Z$21:Z23,-0.8) -> -0.476214415 | AC23: =IF(AND(AA23>0,SUM($AC$22:AC22)<1),1,0) -> 0 | AD23: 0 | AE23: =IF(AND(AA23>0,SUM($AC$22:AC22)<1),C22-(C22-C23)/(AA22-AA23)*AA22,0) -> 0
B24: =IF(#REF!<0,0,1) ->  | C24: 3 | D24: 10 | E24: =$E$22 -> 47.76119403 | F24: =$F$22 -> 788000 | G24: =IF(C24<=P65,G23,G23*(1-$M$64)) -> 8834.9831 | H24: 3092.244085 | I24: 5742.739015 | J24: =J23*(1+$J$6) -> 0.4076917587 | K24: =K23*(1+$J$6) -> 0.0448338276 | L24: 0 | M24: =IF(C24=X$9,V$9+M$20,M$20) -> 225 | N24: =N23 -> 0 | O24: =Certificats_Verts!$E$57*G24/$G$22 -> 1466.65137 | P24: =H24*J24 -> 1260.682429 | Q24: 257.468971 | R24: 0 | T24: =T23 -> 0 | U24: =IF(OR('choix-multiples'!$F$98=1,'choix-multiples'!$F$98=4),0,MIN(Tool!$E$108-(Page_calcul!U22+U23),3680)) -> 0 | V24: =IF('choix-multiples'!$F$98=1,IF(C24<=$V$20,$L$21/$V$20,0),0) -> 0 | W24: =IF(OR('choix-multiples'!$F$98=1,'choix-multiples'!$F$98=4),Tool!$F$116*(O24+P24+Q24-L24-M24-N24-U24-V24),-U24) -> 0 | X24: 225 | Y24: 2984.80277 | Z24: 2759.80277 | AA24: =NPV($AA$20,$Z$22:Z24)+$Z$21 -> -6946.427715 | AB24: =IRR($Z$21:Z24,-0.8) -> -0.2527613899 | AC24: =IF(AND(AA24>0,SUM($AC$22:AC23)<1),1,0) -> 0 | AD24: 0 | AE24: =IF(AND(AA24>0,SUM($AC$22:AC23)<1),C23-(C23-C24)/(AA23-AA24)*AA23,0) -> 0
B25: =IF(#REF!<0,0,1) ->  | C25: 4 | D25: 10 | E25: 47.76119403 | F25: 788000 | G25: 8790.808184 | H25: 3076.782865 | I25: 5714.02532 | J25: =J24*(1+$J$6) -> 0.431623265 | K25: 0.04746557328 | L25: 0 | M25: 225 | N25: 0 | O25: =Certificats_Verts!$E$57*G25/$G$22 -> 1459.318113 | P25: 1328.011066 | Q25: 271.2194875 | R25: 0 | T25: 0 | U25: =IF(OR('choix-multiples'!$F$98=1,'choix-multiples'!$F$98=4),0,MIN(Tool!$E$108-(Page_calcul!U22+U23+U24),3680)) -> 0 | V25: =IF('choix-multiples'!$F$98=1,IF(C25<=$V$20,$L$21/$V$20,0),0) -> 0 | W25: =IF(OR('choix-multiples'!$F$98=1,'choix-multiples'!$F$98=4),Tool!$F$116*(O25+P25+Q25-L25-M25-N25-U25-V25),-U25) -> 0 | X25: 225 | Y25: 3058.548666 | Z25: 2833.548666 | AA25: =NPV($AA$20,$Z$22:Z25)+$Z$21 -> -4112.879049 | AB25: =IRR($Z$21:Z25,-0.8) -> -0.1147980496 | AC25: =IF(AND(AA25>0,SUM($AC$22:AC24)<1),1,0) -> 0 | AD25: 0 | AE25: =IF(AND(AA25>0,SUM($AC$22:AC24)<1),C24-(C24-C25)/(AA24-AA25)*AA24,0) -> 0
B26: =IF(#REF!<0,0,1) ->  | C26: 5 | D26: 10 | E26: 47.76119403 | F26: 788000 | G26: 8746.854144 | H26: 3061.39895 | I26: 5685.455193 | J26: 0.4569595506 | K26: 0.05025180243 | L26: 0 | M26: 225 | N26: 0 | O26: =Certificats_Verts!$E$57*G26/$G$22 -> 1452.021522 | P26: 1398.935489 | Q26: 285.7043711 | R26: 0 | T26: 0 | U26: 0 | V26: =IF('choix-multiples'!$F$98=1,IF(C26<=$V$20,$L$21/$V$20,0),0) -> 0 | W26: =IF(OR('choix-multiples'!$F$98=1,'choix-multiples'!$F$98=4),Tool!$F$116*(O26+P26+Q26-L26-M26-N26-U26-V26),0) -> 0 | X26: 225 | Y26: 3136.661382 | Z26: 2911.661382 | AA26: =NPV($AA$20,$Z$22:Z26)+$Z$21 -> -1201.217667 | AB26: =IRR($Z$21:Z26,-0.8) -> -0.02657890159 | AC26: =IF(AND(AA26>0,SUM($AC$22:AC25)<1),1,0) -> 0 | AD26: 0 | AE26: =IF(AND(AA26>0,SUM($AC$22:AC25)<1),C25-(C25-C26)/(AA25-AA26)*AA25,0) -> 0
B27: =IF(#REF!<0,0,1) ->  | C27: 6 | D27: 10 | E27: 47.76119403 | F27: 788000 | G27: 8703.119873 | H27: 3046.091956 | I27: 5657.027917 | J27: 0.4837830762 | K27: 0.05320158323 | L27: 0 | M27: 225 | N27: 0 | O27: =Certificats_Verts!$E$57*G27/$G$22 -> 1444.761414 | P27: 1473.647737 | Q27: 300.9628416 | R27: 0 | T27: 0 | U27: 0 | V27: =IF('choix-multiples'!$F$98=1,IF(C27<=$V$20,$L$21/$V$20,0),0) -> 0 | W27: =IF(OR('choix-multiples'!$F$98=1,'choix-multiples'!$F$98=4),Tool!$F$116*(O27+P27+Q27-L27-M27-N27-U27-V27),0) -> 0 | X27: 225 | Y27: 3219.371993 | Z27: 2994.371993 | AA27: =NPV($AA$20,$Z$22:Z27)+$Z$21 -> 1793.154326 | AB27: =IRR($Z$21:Z27,-0.8) -> 0.03232041781 | AC27: =IF(AND(AA27>0,SUM($AC$22:AC26)<1),1,0) -> 1 | AD27: 6 | AE27: =IF(AND(AA27>0,SUM($AC$22:AC26)<1),C26-(C26-C27)/(AA26-AA27)*AA26,0) -> 5.401158463
B28: =IF(#REF!<0,0,1) ->  | C28: 7 | D28: 10 | E28: 47.76119403 | F28: 788000 | G28: 8659.604273 | H28: 3030.861496 | I28: 5628.742778 | J28: 0.5121811428 | K28: 0.05632451617 | L28: 0 | M28: 225 | N28: 0 | O28: =Certificats_Verts!$E$57*G28/$G$22 -> 1437.537607 | P28: 1552.350105 | Q28: 317.0362136 | R28: 0 | T28: 0 | U28: 0 | V28: =IF('choix-multiples'!$F$98=1,IF(C28<=$V$20,$L$21/$V$20,0),0) -> 0 | W28: =IF(OR('choix-multiples'!$F$98=1,'choix-multiples'!$F$98=4),Tool!$F$116*(O28+P28+Q28-L28-M28-N28-U28-V28),0) -> 0 | X28: 225 | Y28: 3306.923926 | Z28: 3081.923926 | AA28: =NPV($AA$20,$Z$22:Z28)+$Z$21 -> 4875.078251 | AB28: =IRR($Z$21:Z28,-0.8) -> 0.0731688215 | AC28: =IF(AND(AA28>0,SUM($AC$22:AC27)<1),1,0) -> 0 | AD28: 0 | AE28: =IF(AND(AA28>0,SUM($AC$22:AC27)<1),C27-(C27-C28)/(AA27-AA28)*AA27,0) -> 0
B29: =IF(#REF!<0,0,1) ->  | C29: 8 | D29: 10 | E29: 47.76119403 | F29: 788000 | G29: 8616.306252 | H29: 3015.707188 | I29: 5600.599064 | J29: 0.5422461759 | K29: 0.05963076527 | L29: 0 | M29: 225 | N29: 0 | O29: =Certificats_Verts!$E$57*G29/$G$22 -> 1430.349919 | P29: 1635.25569 | Q29: 333.9680081 | R29: 0 | T29: 0 | U29: 0 | V29: =IF('choix-multiples'!$F$98=1,IF(C29<=$V$20,$L$21/$V$20,0),0) -> 0 | W29: =IF(OR('choix-multiples'!$F$98=1,'choix-multiples'!$F$98=4),Tool!$F$116*(O29+P29+Q29-L29-M29-N29-U29-V29),0) -> 0 | X29: 225 | Y29: 3399.573618 | Z29: 3174.573618 | AA29: =NPV($AA$20,$Z$22:Z29)+$Z$21 -> 8049.651869 | AB29: =IRR($Z$21:Z29,-0.8) -> 0.1024101629 | AC29: =IF(AND(AA29>0,SUM($AC$22:AC28)<1),1,0) -> 0 | AD29: 0 | AE29: =IF(AND(AA29>0,SUM($AC$22:AC28)<1),C28-(C28-C29)/(AA28-AA29)*AA28,0) -> 0
B30: =IF(#REF!<0,0,1) ->  | C30: 9 | D30: 10 | E30: 47.76119403 | F30: 788000 | G30: 8573.224721 | H30: 3000.628652 | I30: 5572.596069 | J30: 0.5740760264 | K30: 0.06313109119 | L30: 0 | M30: 225 | N30: 0 | O30: =Certificats_Verts!$E$57*G30/$G$22 -> 1423.19817 | P30: 1722.588973 | Q30: 351.8040706 | R30: 0 | T30: 0 | U30: 0 | V30: =IF('choix-multiples'!$F$98=1,IF(C30<=$V$20,$L$21/$V$20,0),0) -> 0 | W30: =IF(OR('choix-multiples'!$F$98=1,'choix-multiples'!$F$98=4),Tool!$F$116*(O30+P30+Q30-L30-M30-N30-U30-V30),0) -> 0 | X30: 225 | Y30: 3497.591214 | Z30: 3272.591214 | AA30: =NPV($AA$20,$Z$22:Z30)+$Z$21 -> 11322.24308 | AB30: =IRR($Z$21:Z30,-0.8) -> 0.1238977845 | AC30: =IF(AND(AA30>0,SUM($AC$22:AC29)<1),1,0) -> 0 | AD30: 0 | AE30: =IF(AND(AA30>0,SUM($AC$22:AC29)<1),C29-(C29-C30)/(AA29-AA30)*AA29,0) -> 0
B31: =IF(#REF!<0,0,1) ->  | C31: 10 | D31: 10 | E31: 47.76119403 | F31: 788000 | G31: 8530.358597 | H31: 2985.625509 | I31: 5544.733088 | J31: 0.6077742892 | K31: 0.06683688624 | L31: 0 | M31: 225 | N31: 0 | O31: =Certificats_Verts!$E$57*G31/$G$22 -> 1416.082179 | P31: 1814.586421 | Q31: 370.5926947 | R31: 0 | T31: 0 | U31: 0 | V31: =IF('choix-multiples'!$F$98=1,IF(C31<=$V$20,$L$21/$V$20,0),0) -> 0 | W31: =IF(OR('choix-multiples'!$F$98=1,'choix-multiples'!$F$98=4),Tool!$F$116*(O31+P31+Q31-L31-M31-N31-U31-V31),0) -> 0 | X31: 225 | Y31: 3601.261295 | Z31: 3376.261295 | AA31: =NPV($AA$20,$Z$22:Z31)+$Z$21 -> 14698.50438 | AB31: =IRR($Z$21:Z31,-0.8) -> 0.1400347424 | AC31: =IF(AND(AA31>0,SUM($AC$22:AC30)<1),1,0) -> 0 | AD31: 0 | AE31: =IF(AND(AA31>0,SUM($AC$22:AC30)<1),C30-(C30-C31)/(AA30-AA31)*AA30,0) -> 0
B32: =IF(#REF!<0,0,1) ->  | C32: 11 | D32: 10 | E32: 47.76119403 | F32: 788000 | G32: 8487.706804 | H32: 2970.697381 | I32: 5517.009423 | J32: 0.6434506399 | K32: 0.07076021147 | L32: 0 | M32: 225 | N32: 0 | O32: =Certificats_Verts!$F$57*(G32/$G$22) -> 0 | P32: 1911.497131 | Q32: 390.3847534 | R32: 0 | T32: 0 | U32: 0 | V32: =IF('choix-multiples'!$F$98=1,IF(C32<=$V$20,$L$21/$V$20,0),0) -> 0 | W32: =IF(OR('choix-multiples'!$F$98=1,'choix-multiples'!$F$98=4),Tool!$F$116*(O32+P32+Q32-L32-M32-N32-U32-V32),0) -> 0 | X32: 225 | Y32: 2301.881885 | Z32: 2076.881885 | AA32: =NPV($AA$20,$Z$22:Z32)+$Z$21 -> 16775.38626 | AB32: =IRR($Z$21:Z32,-0.8) -> 0.147615908 | AC32: =IF(AND(AA32>0,SUM($AC$22:AC31)<1),1,0) -> 0 | AD32: 0 | AE32: =IF(AND(AA32>0,SUM($AC$22:AC31)<1),C31-(C31-C32)/(AA31-AA32)*AA31,0) -> 0
B33: =IF(#REF!<0,0,1) ->  | C33: 12 | D33: 10 | E33: 47.76119403 | F33: 788000 | G33: 8445.26827 | H33: 2955.843895 | I33: 5489.424376 | J33: 0.6812211925 | K33: 0.07491383588 | L33: 0 | M33: 225 | N33: 0 | O33: =Certificats_Verts!$F$57*(G33/$G$22) -> 0 | P33: 2013.583503 | Q33: 411.2338368 | R33: 0 | T33: 0 | U33: 0 | V33: =IF('choix-multiples'!$F$98=1,IF(C33<=$V$20,$L$21/$V$20,0),0) -> 0 | W33: =IF(OR('choix-multiples'!$F$98=1,'choix-multiples'!$F$98=4),Tool!$F$116*(O33+P33+Q33-L33-M33-N33-U33-V33),0) -> 0 | X33: 225 | Y33: 2424.817339 | Z33: 2199.817339 | AA33: =NPV($AA$20,$Z$22:Z33)+$Z$21 -> 18975.2036 | AB33: =IRR($Z$21:Z33,-0.8) -> 0.1539913235 | AC33: =IF(AND(AA33>0,SUM($AC$22:AC32)<1),1,0) -> 0 | AD33: 0 | AE33: =IF(AND(AA33>0,SUM($AC$22:AC32)<1),C32-(C32-C33)/(AA32-AA33)*AA32,0) -> 0
B34: =IF(#REF!<0,0,1) ->  | C34: 13 | D34: 10 | E34: 47.76119403 | F34: 788000 | G34: 8403.041929 | H34: 2941.064675 | I34: 5461.977254 | J34: 0.7212088765 | K34: 0.07931127805 | L34: 0 | M34: 225 | N34: 0 | O34: =Certificats_Verts!$F$57*(G34/$G$22) -> 0 | P34: 2121.12195 | Q34: 433.1963967 | R34: 0 | T34: 0 | U34: 0 | V34: =IF('choix-multiples'!$F$98=1,IF(C34<=$V$20,$L$21/$V$20,0),0) -> 0 | W34: =IF(OR('choix-multiples'!$F$98=1,'choix-multiples'!$F$98=4),Tool!$F$116*(O34+P34+Q34-L34-M34-N34-U34-V34),0) -> 0 | X34: 225 | Y34: 2554.318347 | Z34: 2329.318347 | AA34: =NPV($AA$20,$Z$22:Z34)+$Z$21 -> 21304.52195 | AB34: =IRR($Z$21:Z34,-0.8) -> 0.1593565875 | AC34: =IF(AND(AA34>0,SUM($AC$22:AC33)<1),1,0) -> 0 | AD34: 0 | AE34: =IF(AND(AA34>0,SUM($AC$22:AC33)<1),C33-(C33-C34)/(AA33-AA34)*AA33,0) -> 0
B35: =IF(#REF!<0,0,1) ->  | C35: 14 | D35: 10 | E35: 47.76119403 | F35: 788000 | G35: 8361.026719 | H35: 2926.359352 | I35: 5434.667368 | J35: 0.7635438375 | K35: 0.08396685007 | L35: 0 | M35: 225 | N35: 0 | O35: =Certificats_Verts!$F$57*(G35/$G$22) -> 0 | P35: 2234.403649 | Q35: 456.3319 | R35: 0 | T35: 0 | U35: 0 | V35: =IF('choix-multiples'!$F$98=1,IF(C35<=$V$20,$L$21/$V$20,0),0) -> 0 | W35: =IF(OR('choix-multiples'!$F$98=1,'choix-multiples'!$F$98=4),Tool!$F$116*(O35+P35+Q35-L35-M35-N35-U35-V35),0) -> 0 | X35: 225 | Y35: 2690.735549 | Z35: 2465.735549 | AA35: =NPV($AA$20,$Z$22:Z35)+$Z$21 -> 23770.2575 | AB35: =IRR($Z$21:Z35,-0.8) -> 0.1638801048 | AC35: =IF(AND(AA35>0,SUM($AC$22:AC34)<1),1,0) -> 0 | AD35: 0 | AE35: =IF(AND(AA35>0,SUM($AC$22:AC34)<1),C34-(C34-C35)/(AA34-AA35)*AA34,0) -> 0
B36: =IF(#REF!<0,0,1) ->  | C36: 15 | D36: 10 | E36: 47.76119403 | F36: 788000 | G36: 8319.221586 | H36: 2911.727555 | I36: 5407.494031 | J36: 0.8083638608 | K36: 0.08889570417 | L36: 0 | M36: 1292.2186 | N36: 0 | O36: =Certificats_Verts!$F$57*(G36/$G$22) -> 0 | P36: 2353.735328 | Q36: 480.7029896 | R36: 0 | T36: 0 | U36: 0 | V36: =IF('choix-multiples'!$F$98=1,IF(C36<=$V$20,$L$21/$V$20,0),0) -> 0 | W36: =IF(OR('choix-multiples'!$F$98=1,'choix-multiples'!$F$98=4),Tool!$F$116*(O36+P36+Q36-L36-M36-N36-U36-V36),0) -> 0 | X36: 1292.2186 | Y36: 2834.438318 | Z36: 1542.219718 | AA36: =NPV($AA$20,$Z$22:Z36)+$Z$21 -> 25312.47722 | AB36: =IRR($Z$21:Z36,-0.8) -> 0.1661718573 | AC36: =IF(AND(AA36>0,SUM($AC$22:AC35)<1),1,0) -> 0 | AD36: 0 | AE36: =IF(AND(AA36>0,SUM($AC$22:AC35)<1),C35-(C35-C36)/(AA35-AA36)*AA35,0) -> 0
B37: =IF(#REF!<0,0,1) ->  | C37: 16 | D37: 10 | E37: 47.76119403 | F37: 788000 | G37: 8277.625478 | H37: 2897.168917 | I37: 5380.456561 | J37: 0.8558148194 | K37: 0.094113882 | L37: 0 | M37: 225 | N37: 0 | O37: =Certificats_Verts!$G$57*(G37/$G$22) -> 0 | P37: 2479.440094 | Q37: 506.3756538 | R37: 0 | T37: 0 | U37: 0 | V37: =IF('choix-multiples'!$F$98=1,IF(C37<=$V$20,$L$21/$V$20,0),0) -> 0 | W37: =IF(OR('choix-multiples'!$F$98=1,'choix-multiples'!$F$98=4),Tool!$F$116*(O37+P37+Q37-L37-M37-N37-U37-V37),0) -> 0 | X37: 225 | Y37: 2985.815748 | Z37: 2760.815748 | AA37: =NPV($AA$20,$Z$22:Z37)+$Z$21 -> 28073.29296 | AB37: =IRR($Z$21:Z37,-0.8) -> 0.1695044693 | AC37: =IF(AND(AA37>0,SUM($AC$22:AC36)<1),1,0) -> 0 | AD37: 0 | AE37: =IF(AND(AA37>0,SUM($AC$22:AC36)<1),C36-(C36-C37)/(AA36-AA37)*AA36,0) -> 0
B38: =IF(#REF!<0,0,1) ->  | C38: 17 | D38: 10 | E38: 47.76119403 | F38: 788000 | G38: 8236.23735 | H38: 2882.683073 | I38: 5353.554278 | J38: 0.9060511493 | K38: 0.09963836687 | L38: 0 | M38: 225 | N38: 0 | O38: =Certificats_Verts!$G$57*(G38/$G$22) -> 0 | P38: 2611.858311 | Q38: 533.4194052 | R38: 0 | T38: 0 | U38: 0 | V38: =IF('choix-multiples'!$F$98=1,IF(C38<=$V$20,$L$21/$V$20,0),0) -> 0 | W38: =IF(OR('choix-multiples'!$F$98=1,'choix-multiples'!$F$98=4),Tool!$F$116*(O38+P38+Q38-L38-M38-N38-U38-V38),0) -> 0 | X38: 225 | Y38: 3145.277716 | Z38: 2920.277716 | AA38: =NPV($AA$20,$Z$22:Z38)+$Z$21 -> 30993.57068 | AB38: =IRR($Z$21:Z38,-0.8) -> 0.1723350036 | AC38: =IF(AND(AA38>0,SUM($AC$22:AC37)<1),1,0) -> 0 | AD38: 0 | AE38: =IF(AND(AA38>0,SUM($AC$22:AC37)<1),C37-(C37-C38)/(AA37-AA38)*AA37,0) -> 0
B39: =IF(#REF!<0,0,1) ->  | C39: 18 | D39: 10 | E39: 47.76119403 | F39: 788000 | G39: 8195.056164 | H39: 2868.269657 | I39: 5326.786506 | J39: 0.9592363518 | K39: 0.105487139 | L39: 0 | M39: 225 | N39: 0 | O39: =Certificats_Verts!$G$57*(G39/$G$22) -> 0 | P39: 2751.348522 | Q39: 561.9074687 | R39: 0 | T39: 0 | U39: 0 | V39: =IF('choix-multiples'!$F$98=1,IF(C39<=$V$20,$L$21/$V$20,0),0) -> 0 | W39: =IF(OR('choix-multiples'!$F$98=1,'choix-multiples'!$F$98=4),Tool!$F$116*(O39+P39+Q39-L39-M39-N39-U39-V39),0) -> 0 | X39: 225 | Y39: 3313.255991 | Z39: 3088.255991 | AA39: =NPV($AA$20,$Z$22:Z39)+$Z$21 -> 34081.82667 | AB39: =IRR($Z$21:Z39,-0.8) -> 0.1747466144 | AC39: =IF(AND(AA39>0,SUM($AC$22:AC38)<1),1,0) -> 0 | AD39: 0 | AE39: =IF(AND(AA39>0,SUM($AC$22:AC38)<1),C38-(C38-C39)/(AA38-AA39)*AA38,0) -> 0
B40: =IF(#REF!<0,0,1) ->  | C40: 19 | D40: 10 | E40: 47.76119403 | F40: 788000 | G40: 8154.080883 | H40: 2853.928309 | I40: 5300.152574 | J40: 1.015543526 | K40: 0.1116792341 | L40: 0 | M40: 225 | N40: 0 | O40: =Certificats_Verts!$G$57*(G40/$G$22) -> 0 | P40: 2898.288417 | Q40: 591.9169799 | R40: 0 | T40: 0 | U40: 0 | V40: =IF('choix-multiples'!$F$98=1,IF(C40<=$V$20,$L$21/$V$20,0),0) -> 0 | W40: =IF(OR('choix-multiples'!$F$98=1,'choix-multiples'!$F$98=4),Tool!$F$116*(O40+P40+Q40-L40-M40-N40-U40-V40),0) -> 0 | X40: 225 | Y40: 3490.205397 | Z40: 3265.205397 | AA40: =NPV($AA$20,$Z$22:Z40)+$Z$21 -> 37347.03207 | AB40: =IRR($Z$21:Z40,-0.8) -> 0.1768074704 | AC40: =IF(AND(AA40>0,SUM($AC$22:AC39)<1),1,0) -> 0 | AD40: 0 | AE40: =IF(AND(AA40>0,SUM($AC$22:AC39)<1),C39-(C39-C40)/(AA39-AA40)*AA39,0) -> 0
B41: =IF(#REF!<0,0,1) ->  | C41: 20 | D41: 10 | E41: 47.76119403 | F41: 788000 | G41: 8113.310478 | H41: 2839.658667 | I41: 5273.651811 | J41: 1.075155931 | K41: 0.1182348051 | L41: 0 | M41: 225 | N41: 0 | O41: =Certificats_Verts!$G$57*(G41/$G$22) -> 0 | P41: 3053.075857 | Q41: 623.5291941 | R41: 0 | T41: 0 | U41: 0 | V41: =IF('choix-multiples'!$F$98=1,IF(C41<=$V$20,$L$21/$V$20,0),0) -> 0 | W41: =IF(OR('choix-multiples'!$F$98=1,'choix-multiples'!$F$98=4),Tool!$F$116*(O41+P41+Q41-L41-M41-N41-U41-V41),0) -> 0 | X41: 225 | Y41: 3676.605051 | Z41: 3451.605051 | AA41: =NPV($AA$20,$Z$22:Z41)+$Z$21 -> 40798.63712 | AB41: =IRR($Z$21:Z41,-0.8) -> 0.1785735948 | AC41: =IF(AND(AA41>0,SUM($AC$22:AC40)<1),1,0) -> 0 | AD41: 0 | AE41: =IF(AND(AA41>0,SUM($AC$22:AC40)<1),C40-(C40-C41)/(AA40-AA41)*AA40,0) -> 0
B42: =IF(#REF!<0,0,1) ->  | C42: 21 | D42: 10 | E42: 47.76119403 | F42: 788000 | G42: 8072.743926 | H42: 2825.460374 | I42: 5247.283552 | J42: 1.138267584 | K42: 0.1251751882 | L42: 0 | M42: 225 | N42: 0 | O42: =Certificats_Verts!$H$57*(G42/$G$22) -> 0 | P42: 3216.129953 | Q42: 656.829706 | R42: 0 | T42: 0 | U42: 0 | V42: =IF('choix-multiples'!$F$98=1,IF(C42<=$V$20,$L$21/$V$20,0),0) -> 0 | W42: =IF(OR('choix-multiples'!$F$98=1,'choix-multiples'!$F$98=4),Tool!$F$116*(O42+P42+Q42-L42-M42-N42-U42-V42),0) -> 0 | X42: 225 | Y42: 3872.959659 | Z42: 3647.959659 | AA42: =NPV($AA$20,$Z$22:Z42)+$Z$21 -> 44446.59678 | AB42: =IRR($Z$21:Z42,-0.8) -> 0.180091178 | AC42: =IF(AND(AA42>0,SUM($AC$22:AC41)<1),1,0) -> 0 | AD42: 0 | AE42: =IF(AND(AA42>0,SUM($AC$22:AC41)<1),C41-(C41-C42)/(AA41-AA42)*AA41,0) -> 0
B43: =IF(#REF!<0,0,1) ->  | C43: 22 | D43: 10 | E43: 47.76119403 | F43: 788000 | G43: 8032.380206 | H43: 2811.333072 | I43: 5221.047134 | J43: 1.205083891 | K43: 0.1325229717 | L43: 0 | M43: 225 | N43: 0 | O43: =Certificats_Verts!$H$57*(G43/$G$22) -> 0 | P43: 3387.892197 | Q43: 691.9086817 | R43: 0 | T43: 0 | U43: 0 | V43: =IF('choix-multiples'!$F$98=1,IF(C43<=$V$20,$L$21/$V$20,0),0) -> 0 | W43: =IF(OR('choix-multiples'!$F$98=1,'choix-multiples'!$F$98=4),Tool!$F$116*(O43+P43+Q43-L43-M43-N43-U43-V43),0) -> 0 | X43: 225 | Y43: 4079.800879 | Z43: 3854.800879 | AA43: =NPV($AA$20,$Z$22:Z43)+$Z$21 -> 48301.39766 | AB43: =IRR($Z$21:Z43,-0.8) -> 0.1813984418 | AC43: =IF(AND(AA43>0,SUM($AC$22:AC42)<1),1,0) -> 0 | AD43: 0 | AE43: =IF(AND(AA43>0,SUM($AC$22:AC42)<1),C42-(C42-C43)/(AA42-AA43)*AA42,0) -> 0
B44: =IF(#REF!<0,0,1) ->  | C44: 23 | D44: 10 | E44: 47.76119403 | F44: 788000 | G44: 7992.218305 | H44: 2797.276407 | I44: 5194.941898 | J44: 1.275822315 | K44: 0.1403020702 | L44: 0 | M44: 225 | N44: 0 | O44: =Certificats_Verts!$H$57*(G44/$G$22) -> 0 | P44: 3568.827662 | Q44: 728.8611027 | R44: 0 | T44: 0 | U44: 0 | V44: =IF('choix-multiples'!$F$98=1,IF(C44<=$V$20,$L$21/$V$20,0),0) -> 0 | W44: =IF(OR('choix-multiples'!$F$98=1,'choix-multiples'!$F$98=4),Tool!$F$116*(O44+P44+Q44-L44-M44-N44-U44-V44),0) -> 0 | X44: 225 | Y44: 4297.688765 | Z44: 4072.688765 | AA44: =NPV($AA$20,$Z$22:Z44)+$Z$21 -> 52374.08642 | AB44: =IRR($Z$21:Z44,-0.8) -> 0.1825271355 | AC44: =IF(AND(AA44>0,SUM($AC$22:AC43)<1),1,0) -> 0 | AD44: 0 | AE44: =IF(AND(AA44>0,SUM($AC$22:AC43)<1),C43-(C43-C44)/(AA43-AA44)*AA43,0) -> 0
B45: =IF(#REF!<0,0,1) ->  | C45: 24 | D45: 10 | E45: 47.76119403 | F45: 788000 | G45: 7952.257214 | H45: 2783.290025 | I45: 5168.967189 | J45: 1.350713085 | K45: 0.1485378017 | L45: 0 | M45: 225 | N45: 0 | O45: =Certificats_Verts!$H$57*(G45/$G$22) -> 0 | P45: 3759.426256 | Q45: 767.7870232 | R45: 0 | T45: 0 | U45: 0 | V45: =IF('choix-multiples'!$F$98=1,IF(C45<=$V$20,$L$21/$V$20,0),0) -> 0 | W45: =IF(OR('choix-multiples'!$F$98=1,'choix-multiples'!$F$98=4),Tool!$F$116*(O45+P45+Q45-L45-M45-N45-U45-V45),0) -> 0 | X45: 225 | Y45: 4527.21328 | Z45: 4302.21328 | AA45: =NPV($AA$20,$Z$22:Z45)+$Z$21 -> 56676.2997 | AB45: =IRR($Z$21:Z45,-0.8) -> 0.1835037338 | AC45: =IF(AND(AA45>0,SUM($AC$22:AC44)<1),1,0) -> 0 | AD45: 0 | AE45: =IF(AND(AA45>0,SUM($AC$22:AC44)<1),C44-(C44-C45)/(AA44-AA45)*AA44,0) -> 0
B46: =IF(#REF!<0,0,1) ->  | C46: 25 | D46: 10 | E46: 47.76119403 | F46: 788000 | G46: 7912.495928 | H46: 2769.373575 | I46: 5143.122353 | J46: 1.429999943 | K46: 0.1572569706 | L46: 0 | M46: 225 | N46: 0 | O46: =Certificats_Verts!$H$57*(G46/$G$22) -> 0 | P46: 3960.204055 | Q46: 808.7918408 | R46: 0 | T46: 0 | U46: 0 | V46: =IF('choix-multiples'!$F$98=1,IF(C46<=$V$20,$L$21/$V$20,0),0) -> 0 | W46: =IF(OR('choix-multiples'!$F$98=1,'choix-multiples'!$F$98=4),Tool!$F$116*(O46+P46+Q46-L46-M46-N46-U46-V46),0) -> 0 | X46: 225 | Y46: 4768.995896 | Z46: 4543.995896 | AA46: =NPV($AA$20,$Z$22:Z46)+$Z$21 -> 61220.2956 | AB46: =IRR($Z$21:Z46,-0.8) -> 0.1843503982 | AC46: =IF(AND(AA46>0,SUM($AC$22:AC45)<1),1,0) -> 0 | AD46: 0 | AE46: =IF(AND(AA46>0,SUM($AC$22:AC45)<1),C45-(C45-C46)/(AA45-AA46)*AA45,0) -> 0
B47: =IF(#REF!<0,0,1) ->  | C47: 26 | D47: 10 | E47: 47.76119403 | F47: 788000 | G47: 7872.933448 | H47: 2755.526707 | I47: 5117.406741 | J47: 1.51394094 | K47: 0.1664879548 | L47: 0 | M47: 225 | N47: 0 | O47: =Certificats_Verts!$H$57*(G47/$G$22) -> 0 | P47: 4171.704693 | Q47: 851.9865823 | R47: 0 | T47: 0 | U47: 0 | V47: =IF('choix-multiples'!$F$98=1,IF(C47<=$V$20,$L$21/$V$20,0),0) -> 0 | W47: =IF(OR('choix-multiples'!$F$98=1,'choix-multiples'!$F$98=4),Tool!$F$116*(O47+P47+Q47-L47-M47-N47-U47-V47),0) -> 0 | X47: 225 | Y47: 5023.691275 | Z47: 4798.691275 | AA47: =NPV($AA$20,$Z$22:Z47)+$Z$21 -> 66018.98687 | AB47: =IRR($Z$21:Z47,-0.8) -> 0.1850857487 | AC47: =IF(AND(AA47>0,SUM($AC$22:AC46)<1),1,0) -> 0 | AD47: 0 | AE47: =IF(AND(AA47>0,SUM($AC$22:AC46)<1),C46-(C46-C47)/(AA46-AA47)*AA46,0) -> 0
B48: =IF(#REF!<0,0,1) ->  | C48: 27 | D48: 10 | E48: 47.76119403 | F48: 788000 | G48: 7833.568781 | H48: 2741.749073 | I48: 5091.819708 | J48: 1.602809273 | K48: 0.1762607978 | L48: 0 | M48: 225 | N48: 0 | O48: =Certificats_Verts!$H$57*(G48/$G$22) -> 0 | P48: 4394.500839 | Q48: 897.4882037 | R48: 0 | T48: 0 | U48: 0 | V48: =IF('choix-multiples'!$F$98=1,IF(C48<=$V$20,$L$21/$V$20,0),0) -> 0 | W48: =IF(OR('choix-multiples'!$F$98=1,'choix-multiples'!$F$98=4),Tool!$F$116*(O48+P48+Q48-L48-M48-N48-U48-V48),0) -> 0 | X48: 225 | Y48: 5291.989043 | Z48: 5066.989043 | AA48: =NPV($AA$20,$Z$22:Z48)+$Z$21 -> 71085.97591 | AB48: =IRR($Z$21:Z48,-0.8) -> 0.1857254863 | AC48: =IF(AND(AA48>0,SUM($AC$22:AC47)<1),1,0) -> 0 | AD48: 0 | AE48: =IF(AND(AA48>0,SUM($AC$22:AC47)<1),C47-(C47-C48)/(AA47-AA48)*AA47,0) -> 0
B49: =IF(#REF!<0,0,1) ->  | C49: 28 | D49: 10 | E49: 47.76119403 | F49: 788000 | G49: 7794.400937 | H49: 2728.040328 | I49: 5066.360609 | J49: 1.696894177 | K49: 0.1866073066 | L49: 0 | M49: 225 | N49: 0 | O49: =Certificats_Verts!$H$57*(G49/$G$22) -> 0 | P49: 4629.195748 | Q49: 945.4199074 | R49: 0 | T49: 0 | U49: 0 | V49: =IF('choix-multiples'!$F$98=1,IF(C49<=$V$20,$L$21/$V$20,0),0) -> 0 | W49: =IF(OR('choix-multiples'!$F$98=1,'choix-multiples'!$F$98=4),Tool!$F$116*(O49+P49+Q49-L49-M49-N49-U49-V49),0) -> 0 | X49: 225 | Y49: 5574.615656 | Z49: 5349.615656 | AA49: =NPV($AA$20,$Z$22:Z49)+$Z$21 -> 76435.59157 | AB49: =IRR($Z$21:Z49,-0.8) -> 0.1862828963 | AC49: =IF(AND(AA49>0,SUM($AC$22:AC48)<1),1,0) -> 0 | AD49: 0 | AE49: =IF(AND(AA49>0,SUM($AC$22:AC48)<1),C48-(C48-C49)/(AA48-AA49)*AA48,0) -> 0
B50: =IF(#REF!<0,0,1) ->  | C50: 29 | D50: 10 | E50: 47.76119403 | F50: 788000 | G50: 7755.428932 | H50: 2714.400126 | I50: 5041.028806 | J50: 1.796501866 | K50: 0.1975611555 | L50: 0 | M50: 225 | N50: 0 | O50: =Certificats_Verts!$H$57*(G50/$G$22) -> 0 | P50: 4876.424891 | Q50: 995.9114757 | R50: 0 | T50: 0 | U50: 0 | V50: =IF('choix-multiples'!$F$98=1,IF(C50<=$V$20,$L$21/$V$20,0),0) -> 0 | W50: =IF(OR('choix-multiples'!$F$98=1,'choix-multiples'!$F$98=4),Tool!$F$116*(O50+P50+Q50-L50-M50-N50-U50-V50),0) -> 0 | X50: 225 | Y50: 5872.336367 | Z50: 5647.336367 | AA50: =NPV($AA$20,$Z$22:Z50)+$Z$21 -> 82082.92794 | AB50: =IRR($Z$21:Z50,-0.8) -> 0.1867692565 | AC50: =IF(AND(AA50>0,SUM($AC$22:AC49)<1),1,0) -> 0 | AD50: 0 | AE50: =IF(AND(AA50>0,SUM($AC$22:AC49)<1),C49-(C49-C50)/(AA49-AA50)*AA49,0) -> 0
B51: =IF(#REF!<0,0,1) ->  | C51: 30 | D51: 10 | E51: 47.76119403 | F51: 788000 | G51: 7716.651788 | H51: 2700.828126 | I51: 5015.823662 | J51: 1.901956525 | K51: 0.2091579953 | L51: 0 | M51: 225 | N51: 0 | O51: =Certificats_Verts!$H$57*(G51/$G$22) -> 0 | P51: 5136.857677 | Q51: 1049.099622 | R51: 0 | T51: 0 | U51: 0 | V51: =IF('choix-multiples'!$F$98=1,IF(C51<=$V$20,$L$21/$V$20,0),0) -> 0 | W51: =IF(OR('choix-multiples'!$F$98=1,'choix-multiples'!$F$98=4),Tool!$F$116*(O51+P51+Q51-L51-M51-N51-U51-V51),0) -> 0 | X51: 225 | Y51: 6185.957299 | Z51: 5960.957299 | AA51: =NPV($AA$20,$Z$22:Z51)+$Z$21 -> 88043.88524 | AB51: =IRR($Z$21:Z51,-0.8) -> 0.1871941705 | AC51: =IF(AND(AA51>0,SUM($AC$22:AC50)<1),1,0) -> 0 | AD51: 0 | AE51: =IF(AND(AA51>0,SUM($AC$22:AC50)<1),C50-(C50-C51)/(AA50-AA51)*AA50,0) -> 0
L52: =SUM(L21:L46) -> 15245.98 | M52: =SUM(M22:M46) -> 6467.2186 | N52: =SUM(N22:N46) -> 0 | R52: =SUM(R22:R51) -> 0 | S52: =SUM(U22:U46) -> 0 | T52: =SUM(T22:T51) -> 0 | AC52: =SUM(AC22:AC51) -> 1 | AD52: =SUM(AD22:AD51) -> 6 | AE52: =SUM(AE22:AE51) -> 5.401077795
B53: Production en 20 ans (kWh) | G53: =SUM(G22:G41) -> 170251.2148 | N53: Economie d'élec. (€) | O53: Certificats verts sur temps de vie (€) | U53: Solde après 25 ans : | V53: =SUM(#REF!) ->  | X53: €
B54: Production en 25 ans (kWh) | G54: =SUM(G22:G46) -> 210213.3104 | N54: =SUM(H22:H46) -> 73574.65863 | O54: =SUM(O22:O41) -> 14485.37039 | P54: =IF('choix-multiples'!$F$98=1,IF('choix-multiples'!$J$106<>2,S52+(SUM(O22:O31))*Tool!$F$116/100,S52),S52) -> 0 | U54: Prix du kWh moyen sur 25 ans : | V54: =(-L52-M52+N52-P54)/G54 -> -0.1032912643 | X54: €/kWh
C58: De gemiddelde levensduur van zo een zonne-installatie op meer dan 30 jaar wordt geraamd.
C59: Invertoren (die de opgewekte gelijkstroom omzetten in wisselstroom) moeten gewoonlijk ongeveer halfweg de levensduur van de zonnepanelen vervangen worden. De kostprijs van deze vervanging bedraagt meestal zo'n 10% van de initiële investering.
C60: http://www.energiesparen.be/energiewinst/pv.php
K64: perte annuelle de performance | M64: =VLOOKUP(Tool!$I$36, 'choix-multiples'!$G$127:$I$130, 3, FALSE) -> 0.005 | N64: après | P64: 1
C75: Situation actuelle: | D75: Mise à jour : 8/05/2013
C76: http://www.bruxellesenvironnement.be/Templates/Professionnels/informer.aspx?id=32624
C77: Depuis la dernière adaptation du coefficient,en vigueur depuis le 20 octobre 2012, les prix des panneaux photovoltaïques ont encore baissé. Par conséquent un nouveau coefficient a été annoncé le 2 mai 2013, lequel est valable pour toutes nouvelles installations à partir du 2 août 2013. Il résulte de ce nouveau coefficient, combiné au principe de base, que 2,4 certificats verts sont délivrés par MWh produit.
C79: Concrètement:
C81: pour les installations certifiées* entre le 20 octobre 2012 et le premier août 2013 (inclus), vous recevez 4 certificats verts pour chaque MWh d'électricité produite.
C82: pour toutes les installations certifiées* à partir du 2 août 2013 , vous recevez 2,4 certificats verts pour chaque MWh d'électricité produite. Les personnes morales et les instances publiques reçoivent également 2,4 certificats verts.

Sheet Coût_Net
C2: Régions | D2: Types de structures | E2: 1. Montant Primes ou Subsides (%) | F2: 1' Condition plafonnante calculées (€) | G2: 2. Montant Certificats Verts jusqu'à 5 kWc en RW et 20m² en RBC (€/kWh) | H2: 2'. Montant Certificats Verts au-delà de 5 kWc en RW où entre 20m² et 60 m² en RBC (€/kWh) | I2: 2'' Montant Certificats Verts pour plus de 40m² en RBC (€/kWh) | J2: 3. Prix Electricité (€/kWh TVAC) | K2: 3'. Prix Electricité en cas de rachat (€/kWh TVAC) | L2: 4. Déduction Impôt IPP (%) | M2: 4' Conditions Impôts | N2: 5. Charge Financière par an en ... ans (K+int) sur le TOTAL de l'investissement | O2: 6. Durée de l'amortissement fiscale (année) | P2: 7. Amortissement et économie Isoc par an (21% pendant … ans) | Q2: 8. Assurance Vol / Dégâts (€/an et par kW) | R2: 9, Entretien | S2: Pouvoir public : | T2: Facilitateurs : | U2: Primes : | V2: Certificats verts : | W2: Déductions fiscales : | X2: Primes (€/Wc) | Y2: Calcul du Montant de la primes (€)
F3: =IF(Tool!E104<1,Tool!F104,Tool!E104) -> 15245.98 | X3: 0.25 | Y3: =X3*1000*Tool!$E$46 -> 2500
C4: Région Bruxelles Capitale | D4: 1 | E4: =IF(Tool!$E$104<1,Coût_Net!Y3/Tool!$F$104,Coût_Net!Y3/Tool!$E$104) -> 0.1639776518 | F4: =IF($F$3<666666.666666667,$F$3*0.3,200000) -> 4573.794 | G4: =Certificats_Verts!$E$13 -> 0 | H4: =Certificats_Verts!$F$13 -> 0 | I4: =Certificats_Verts!$G$13 -> 0.166005 | J4: =R69 -> 0.1456 | K4: 0.05 | L4: =0.135*Page_calcul!J5 -> 0 | M4: 999999999999 | N4: 0 | O4: 0 | P4: 0 | Q4: 18.51 | R4: 0.5 | S4: http://www.ibgebim.be | T4: http://www.ibgebim.be/francais/contenu/content.asp?ref=1762 | U4: http://www.ibgebim.be | V4: http://www.brugel.be | X4: 0.25 | Y4: =X4*1000*Tool!$E$46 -> 2500 | Z4: Tertiaire
D5: 2 | E5: =IF(Tool!$E$104<1,Coût_Net!Y4/Tool!$F$104,Coût_Net!Y4/Tool!$E$104) -> 0.1639776518 | F5: =($F$3*0.3) -> 4573.794 | G5: =Certificats_Verts!$E$13 -> 0 | H5: =Certificats_Verts!$F$13 -> 0 | I5: =Certificats_Verts!$G$13 -> 0.166005 | J5: 0.2 | K5: 0.05 | L5: 0.4 | M5: =Tool!G21*3680 -> 3680000 | N5: 0 | O5: 0 | P5: 0 | Q5: 18.51 | R5: 0.05 | S5: http://www.ibgebim.be | T5: http://www.ibgebim.be/francais/contenu/content.asp?ref=2393 | U5: http://www.ibgebim.be | V5: http://www.brugel.be | W5: http://mineco.fgov.be | X5: 1 | Y5: =X5*1000*Tool!$E$46 -> 10000 | Z5: Log coll
D6: 3 | E6: =IF(Tool!$E$104<1,Coût_Net!Y7/Tool!$F$104,Coût_Net!Y7/Tool!$E$104) -> 0.1639776518 | F6: =$F$3*0.3 -> 4573.794 | G6: =Certificats_Verts!$E$13 -> 0 | H6: =Certificats_Verts!$F$13 -> 0 | I6: =Certificats_Verts!$G$13 -> 0.166005 | J6: 0.2 | K6: 0.05 | L6: 0.4 | M6: 3680 | N6: 0 | O6: 7 | P6: 0.21 | Q6: 0 | S6: http://www.ibgebim.be | T6: http://www.apere.org | U6: http://www.ibgebim.be | V6: http://www.brugel.be | W6: http://mineco.fgov.be | X6: =IF('choix-multiples'!H120=1,0.25,IF('choix-multiples'!H120=2,0.5,1)) -> 0.25 | Y6: =X6*1000*Tool!$E$46 -> 2500 | Z6: Maison indiv
D7: 4 | E7: 0 | F7: 999999999999 | G7: =Certificats_Verts!$E$13 -> 0 | H7: =Certificats_Verts!$F$13 -> 0 | I7: =Certificats_Verts!$G$13 -> 0.166005 | J7: 0.2 | K7: 0.05 | L7: 0 | M7: 999999999999 | N7: 0 | O7: 7 | P7: 0.21 | Q7: 0 | S7: http://www.ibgebim.be | U7: http://www.ibgebim.be | V7: http://www.brugel.be | W7: http://mineco.fgov.be | X7: =IF('choix-multiples'!H120=1,0.25,IF('choix-multiples'!H120=2,0.5,1)) -> 0.25 | Y7: =X7*1000*Tool!$E$46 -> 2500 | Z7: Autres
D8: 5 | E8: =IF(Tool!$E$104<1,Coût_Net!Y3/Tool!$F$104,Coût_Net!Y3/Tool!$E$104) -> 0.1639776518 | F8: =IF($F$3<666666.666666667,$F$3*0.3,200000) -> 4573.794 | G8: =Certificats_Verts!$E$13 -> 0 | H8: =Certificats_Verts!$F$13 -> 0 | I8: =Certificats_Verts!$G$13 -> 0.166005 | J8: 0.2 | K8: 0.05 | L8: 0.0458865 | M8: 999999999999 | N8: 0 | O8: 7 | P8: 0.21 | Q8: 18.51 | S8: http://www.ibgebim.be | Y8: =X6*1000*Tool!$E$46 -> 2500
D9: 6 | E9: =IF(Tool!$E$104<1,Coût_Net!Y3/Tool!$F$104,Coût_Net!Y3/Tool!$E$104) -> 0.1639776518 | F9: =IF($F$3<666666.666666667,$F$3*0.3,200000) -> 4573.794 | G9: =Certificats_Verts!$E$13 -> 0 | H9: =Certificats_Verts!$F$13 -> 0 | I9: =Certificats_Verts!$G$13 -> 0.166005 | J9: 0.2 | K9: 0.05 | L9: 0.0458865 | M9: 999999999999 | N9: 0 | O9: 7 | P9: 0.21 | Q9: 18.51 | S9: http://www.ibgebim.be | U9: http://www.ibgebim.be | V9: http://www.brugel.be
C34: Régions | D34: Types de structures
C36: ='choix-multiples'!F92 -> 1 | D36: ='choix-multiples'!F98 -> 2 | E36: =VLOOKUP($C$36,$C$39:$P$42,3,FALSE) -> 0.1639776518 | F36: =VLOOKUP($C$36,$C$39:$P$42,4,FALSE) -> 4573.794 | G36: =VLOOKUP($C$36,$C$39:$P$42,5,FALSE) -> 0 | H36: =VLOOKUP($C$36,$C$39:$P$42,6,FALSE) -> 0 | I36: =VLOOKUP($C$36,$C$39:$P$42,7,FALSE) -> 0.166005 | J36: =VLOOKUP($C$36,$C$39:$P$42,8,FALSE) -> 0.2 | K36: =VLOOKUP($C$36,$C$39:$P$42,9,FALSE) -> 0.05 | L36: =VLOOKUP($C$36,$C$39:$P$42,10,FALSE) -> 0.4 | M36: =VLOOKUP($C$36,$C$39:$P$42,11,FALSE) -> 3680000 | N36: =VLOOKUP($C$36,$C$39:$P$42,12,FALSE) -> 0 | O36: =VLOOKUP($C$36,$C$39:$P$42,13,FALSE) -> 0 | P36: =VLOOKUP($C$36,$C$39:$P$42,14,FALSE) -> 0 | Q36: =VLOOKUP($C$36,$C$39:$Q$42,15,FALSE) -> 18.51 | R36: =VLOOKUP($C$36,$C$39:$Z$42,16,FALSE) -> 0.05 | S36: =VLOOKUP($C$36,$C$39:$Z$42,17,FALSE) -> 0 | T36: =VLOOKUP($C$36,$C$39:$Z$42,18,FALSE) -> 0 | U36: =VLOOKUP($C$36,$C$39:$Z$42,19,FALSE) -> 0 | V36: =VLOOKUP($C$36,$C$39:$Z$42,20,FALSE) -> 0 | W36: =VLOOKUP($C$36,$C$39:$Z$42,21,FALSE) -> 0
C39: 1 | D39: ='choix-multiples'!F98 -> 2 | E39: =VLOOKUP($D$39,$D$4:$Q$9,2,FALSE) -> 0.1639776518 | F39: =VLOOKUP($D$39,$D$4:$Q$9,3,FALSE) -> 4573.794 | G39: =VLOOKUP($D$39,$D$4:$Q$9,4,FALSE) -> 0 | H39: =VLOOKUP($D$39,$D$4:$Q$9,5,FALSE) -> 0 | I39: =VLOOKUP($D$39,$D$4:$Q$9,6,FALSE) -> 0.166005 | J39: =VLOOKUP($D$39,$D$4:$Q$9,7,FALSE) -> 0.2 | K39: =VLOOKUP($D$39,$D$4:$Q$9,8,FALSE) -> 0.05 | L39: =VLOOKUP($D$39,$D$4:$Q$9,9,FALSE) -> 0.4 | M39: =VLOOKUP($D$39,$D$4:$Q$9,10,FALSE) -> 3680000 | N39: =VLOOKUP($D$39,$D$4:$Q$9,11,FALSE) -> 0 | O39: =VLOOKUP($D$39,$D$4:$Q$9,12,FALSE) -> 0 | P39: =VLOOKUP($D$39,$D$4:$Q$9,13,FALSE) -> 0 | Q39: =VLOOKUP($D$39,$D$4:$Q$9,14,FALSE) -> 18.51 | R39: =VLOOKUP($D$39,$D$4:$W$9,15,FALSE) -> 0.05
D44: =200000/0.4 -> 500000
E49: 0.4981560257 | F49: 30780.1824 | G49: 0 | H49: 0 | I49: 0.3818181818 | J49: 0.17 | K49: 0.05
E50: 0.4981560257 | F50: 30780.1824 | G50: 0 | H50: 0 | I50: 0.3818181818 | J50: 0.11 | K50: 0.05
H57: =200000/0.3 -> 666666.6667 | I57: 666666.6667
N68: Prix secteur tertiaire EUROSTAT
C69: CREG 2012 | D69: BRUGEL / Particulier | N69: Consommateur entre 20 et 500 MWh | R69: 0.1456 | S69: € HTVA
N70: http://epp.eurostat.ec.europa.eu/statistics_explained/index.php/Energy_price_statistics/fr#Statistiques_sur_le_prix_de_l.E2.80.99.C3.A9nergie
C75: Situation actuelle: | D75: Mise à jour : 8/05/2013
C76: http://www.bruxellesenvironnement.be/Templates/Professionnels/informer.aspx?id=32624
C77: Depuis la dernière adaptation du coefficient,en vigueur depuis le 20 octobre 2012, les prix des panneaux photovoltaïques ont encore baissé. Par conséquent un nouveau coefficient a été annoncé le 2 mai 2013, lequel est valable pour toutes nouvelles installations à partir du 2 août 2013. Il résulte de ce nouveau coefficient, combiné au principe de base, que 2,4 certificats verts sont délivrés par MWh produit.
C79: Concrètement:
C81: pour les installations certifiées* entre le 20 octobre 2012 et le premier août 2013 (inclus), vous recevez 4 certificats verts pour chaque MWh d'électricité produite.
C82: pour toutes les installations certifiées* à partir du 2 août 2013 , vous recevez 2,4 certificats verts pour chaque MWh d'électricité produite. Les personnes morales et les instances publiques reçoivent également 2,4 certificats verts.

Sheet Calcul_CoûtBrut_m² (hidden)
A3: 2 | B3: Type de technologie : | D3: Coût supplémentaire par rapport au prix de base
C4: ='choix-multiples'!G125 -> 1 | D4: =VLOOKUP(C4,C6:D8,2,FALSE) -> -5 | E4: %
H5: Coût d'entretien annuel
B6: Polycristallin | C6: 1 | D6: -5 | E6: % | H6: puissance installation | I6: =_cmt_peak_used -> 10
B7: Monocristallin | C7: 2 | D7: -5 | E7: % | H7: range | I7: =VLOOKUP(1,$J11:$L17,2,FALSE) -> 225 | J7: =VLOOKUP(1,$J11:$L17,3,FALSE) -> €/an
B8: Monocristallin haute-performance | C8: 3 | D8: 0 | E8: % | H8: Coût d'entretien annuel | I8: =IF(J7=L11,I7,I7*I6) -> 225 | J8: =L11 -> €/an
A10: 3 | B10: Type de montage : | D10: Facteur coût lié au type d'installation | G10: De | H10: à (non-inclus)
C11: ='choix-multiples'!F132 -> 2 | D11: =VLOOKUP(C11,C13:D16,2,FALSE) -> 0 | E11: % | G11: 0 | H11: =G12 -> 10 | I11: 0-10 kWc | J11: =IF(AND(_cmt_peak_used>=G11,_cmt_peak_used<H11),1,0) -> 0 | K11: 75 | L11: €/an
G12: 10 | H12: 30 | I12: 10-30 kWc | J12: 1 | K12: 225 | L12: €/an
B13: ='choix-multiples'!E134 -> Superimposed on an inclined roof | C13: ='choix-multiples'!F134 -> 1 | D13: ='choix-multiples'!L134 -> 0 | E13: % | G13: 30 | H13: 50 | I13: 30-50 | J13: 0 | K13: 300 | L13: €/an
B14: ='choix-multiples'!E135 -> Flat roof | C14: ='choix-multiples'!F135 -> 2 | D14: ='choix-multiples'!L135 -> 0 | E14: % | G14: 50 | H14: 100 | I14: 50-100 | J14: 0 | K14: 6.5 | L14: €/kWc.an
B15: ='choix-multiples'!E136 -> Flat roof back-to-back East-West | C15: ='choix-multiples'!F136 -> 3 | D15: ='choix-multiples'!L136 -> 0 | E15: % | G15: 100 | H15: 110 | I15: 100-110 | J15: 0 | K15: 660 | L15: €/an
B16: ='choix-multiples'!E137 -> Built-in inclined roof | C16: ='choix-multiples'!F137 -> 4 | D16: ='choix-multiples'!L137 -> 20 | E16: % | G16: 110 | H16: =G17 -> 150 | I16: 110-149 | J16: 0 | K16: 6 | L16: €/kWc.an
G17: 150 | I17: >150 | J17: =IF(_cmt_peak_used>=G17,1,0) -> 0 | K17: 5.7 | L17: €/kWc.an
A18: 4 | B18: TVA
C19: ='choix-multiples'!H111 -> 2 | D19: =VLOOKUP(C19,C21:D23,2,FALSE) -> 6 | E19: % | F19: =D19 -> 6 | G19: %
B21: Assujeti ou exempté de TVA | C21: 1 | D21: ='choix-multiples'!I112 -> 0 | E21: %
B22: TVA à 6% | C22: 2 | D22: ='choix-multiples'!I113 -> 6 | E22: %
B23: TVA à 21% | C23: 3 | D23: ='choix-multiples'!I114 -> 21 | E23: %
B31: Facteur coût associé à la puissance installée HTVA | D31: https://www.brugel.brussels/publication/document/propositions/2021/fr/PROPOSITION-28-COEFFICIENT-MULTIPLICATEUR-APPLIQUE-PV.pdf
C33: Puissance (kWc) | D33: Investissement (€ HTVA/Wc) | H33: Puissance de générateur photovoltaïque souhaitée : | R33: =IF(ISBLANK(_Cmt_Peak),Tool!E41,_Cmt_Peak) -> 10
C34: 1 | D34: 1.665 | H34: Facteur coût associé à la puissance installée HTVA | R34: =VLOOKUP($R$33,$C$34:$D$170,2) -> 1.514
C35: 2 | D35: =D34 -> 1.665 | G35: 1 | H35: Idée de coût en tenant compte de la puissance | R35: =R33*R34*1000 -> 15140
C36: 3 | D36: =D35 -> 1.665 | G36: 2 | H36: Coût en tenant compte de la technologie | R36: =R35+(D4*(R35/100)) -> 14383
C37: 4.166666667 | D37: =D36 -> 1.665 | G37: 3 | H37: Coût en tenant compte du type de montage | R37: =R36+(R36*(D11/100)) -> 14383
C38: 5 | D38: =D37 -> 1.665 | G38: 4 | H38: Coût en tenant compte de la TVA | R38: =R37+(R37*(F19/100)) -> 15245.98
C39: 5.833333333 | D39: 1.514 | H39: Idée de coût brut évalué pour ce projet : | R39: =R38 -> 15245.98 | S39: TVAC
C40: 6.666666667 | D40: =D39 -> 1.514
C41: 7.5 | D41: =D40 -> 1.514
C42: 8.5 | D42: 1.514
C43: 9.5 | D43: 1.514
C44: 10.5 | D44: 1.514
C45: 11.5 | D45: 1.514
C46: 12.5 | D46: 1.514
C47: 13.5 | D47: 1.514
C48: 14.5 | D48: 1.514
C49: 15.5 | D49: 1.514
C50: 18 | D50: 1.514
C51: 20 | D51: 1.514
C52: 23 | D52: 1.514
C53: 25 | D53: 1.514
C54: 28 | D54: 1.514
C55: 30 | D55: 1.514
C56: 33 | D56: 1.514
C57: 35 | D57: 1.514
C58: 38 | D58: 1.282
C59: 40 | D59: =D58 -> 1.282
C60: 41.66666667 | D60: =D59 -> 1.282
C61: 45.83333333 | D61: 1.282
C62: 50 | D62: 1.282
C63: 54.16666667 | D63: 1.282
C64: 58.33333333 | D64: 1.282
C65: 62.5 | D65: 1.282
C66: 66.66666667 | D66: 1.282
C67: 70.83333333 | D67: 1.282
C68: 75 | D68: 1.282
C69: 79.16666667 | D69: 1.282
C70: 83.33333333 | D70: 1.282
C71: 87.5 | D71: 1.282
C72: 91.66666667 | D72: 1.282
C73: 95.83333333 | D73: 1.282
C74: 100 | D74: 1.282
C75: 104.1666667 | D75: 1.105
C76: 108.3333333 | D76: =D75 -> 1.105
C77: 112.5 | D77: =D76 -> 1.105
C78: 116.6666667 | D78: 1.105
C79: 120.8333333 | D79: 1.105
C80: 125 | D80: 1.105
C81: 129.1666667 | D81: 1.105
C82: 133.3333333 | D82: 1.105
C83: 137.5 | D83: 1.105
C84: 141.6666667 | D84: 1.105
C85: 145.8333333 | D85: 1.105
C86: 150 | D86: 1.105
C87: 154.1666667 | D87: 1.105
C88: 158.3333333 | D88: 1.105
C89: 162.5 | D89: 1.105
C90: 166.6666667 | D90: 1.105
C91: 170.8333333 | D91: 1.105
C92: 175 | D92: 1.105
C93: 179.1666667 | D93: 1.105
C94: 183.3333333 | D94: 1.105
C95: 187.5 | D95: 1.105
C96: 191.6666667 | D96: 1.105
C97: 195.8333333 | D97: 1.105
C98: 200 | D98: 1.105
C99: 204.1666667 | D99: 1.105
C100: 208.3333333 | D100: 1.105
C101: 212.5 | D101: 1.105
C102: 216.6666667 | D102: 1.105
C103: 220.8333333 | D103: 1.105
C104: 225 | D104: 1.105
C105: 229.1666667 | D105: 1.105
C106: 233.3333333 | D106: 1.105
C107: 237.5 | D107: 1.105
C108: 241.6666667 | D108: 1.105
C109: 245.8333333 | D109: 1.105
C110: 250 | D110: 1.105
C111: 254.1666667 | D111: 0.945
C112: 258.3333333 | D112: =D111 -> 0.945
C113: 262.5 | D113: =D112 -> 0.945
C114: 266.6666667 | D114: 0.945
C115: 270.8333333 | D115: 0.945
C116: 275 | D116: 0.945
C117: 279.1666667 | D117: 0.945
C118: 283.3333333 | D118: 0.945
C119: 287.5 | D119: 0.945
C120: 291.6666667 | D120: 0.945
C121: 295.8333333 | D121: 0.945
C122: 300 | D122: 0.945
C123: 304.1666667 | D123: 0.945
C124: 308.3333333 | D124: 0.945
C125: 312.5 | D125: 0.945
C126: 316.6666667 | D126: 0.945
C127: 320.8333333 | D127: 0.945
C128: 325 | D128: 0.945
C129: 329.1666667 | D129: 0.945
C130: 333.3333333 | D130: 0.945
C131: 337.5 | D131: 0.945
C132: 341.6666667 | D132: 0.945
C133: 345.8333333 | D133: 0.945
C134: 350 | D134: 0.945
C135: 354.1666667 | D135: 0.945
C136: 358.3333333 | D136: 0.945
C137: 362.5 | D137: 0.945
C138: 366.6666667 | D138: 0.945
C139: 370.8333333 | D139: 0.945
C140: 375 | D140: 0.945
C141: 379.1666667 | D141: 0.945
C142: 383.3333333 | D142: 0.945
C143: 387.5 | D143: 0.945
C144: 391.6666667 | D144: 0.945
C145: 395.8333333 | D145: 0.945
C146: 400 | D146: 0.945
C147: 404.1666667 | D147: 0.945
C148: 408.3333333 | D148: 0.945
C149: 412.5 | D149: 0.945
C150: 416.6666667 | D150: 0.945
C151: 420.8333333 | D151: 0.945
C152: 425 | D152: 0.945
C153: 429.1666667 | D153: 0.945
C154: 433.3333333 | D154: 0.945
C155: 437.5 | D155: 0.945
C156: 441.6666667 | D156: 0.945
C157: 445.8333333 | D157: 0.945
C158: 450 | D158: 0.945
C159: 454.1666667 | D159: 0.945
C160: 458.3333333 | D160: 0.945
C161: 462.5 | D161: 0.945
C162: 466.6666667 | D162: 0.945
C163: 470.8333333 | D163: 0.945
C164: 475 | D164: 0.945
C165: 479.1666667 | D165: 0.945
C166: 483.3333333 | D166: 0.945
C167: 487.5 | D167: 0.945
C168: 491.6666667 | D168: 0.945
C169: 495.8333333 | D169: 0.945
C170: 500 | D170: 0.945

Sheet EnergieProduite_kWc_m² (hidden)
C10: Energie net produite par le générateur photovoltaïque : | H10: =D18*D19 -> 9021 | I10: kWh/an
C12: Energie net produite par le générateur photovoltaïque : | H12: =I18*I19 -> 9021 | I12: kWh/an
B16: Données:
B18: Puissance souhaitée : | D18: =_cmt_peak_used -> 10 | E18: kWc | I18: =D18 -> 10
B19: Production spécifique: | D19: =D22*D60*(D37/100) -> 902.1 | E19: kWh/kWc | I19: =D19 -> 902.1
B20: Surface de capteur: | D20: =F29*D18 -> 76.92307692 | E20: m2 | I20: =I29*I18 -> 143.8461538
B22: 1 kWp = x kWh ? | D22: 930 | F22: Brussels PVGIS output based on Climate-SAF PV Gis S, 36°, 7% system losses: | G22: =6200/6 -> 1033.333333 | H22: http://re.jrc.ec.europa.eu/pvgis/apps4/pvest.php#
B23: (baed on average PV Gis, SMA Sunny Design, own installation)
F24: (factor previosly was: 956)
B27: Type de technologie : | D27: Rendement de conversion associé à cette technologie
C29: ='choix-multiples'!G125 -> 1 | D29: =VLOOKUP(C29,C31:E33,2,FALSE) -> 15 | E29: % | F29: =VLOOKUP(C29,C31:F33,4,FALSE) -> 7.692307692 | I29: =VLOOKUP(C29,H31:I33,2,FALSE) -> 14.38461538
L30: Wc par module
B31: Polycristallin | C31: 1 | D31: ='choix-multiples'!G127 -> 15 | E31: % | F31: 7.692307692 | G31: m2 par kWc | H31: 1 | I31: =F31*1.87 -> 14.38461538 | J31: 13 | K31: % | L31: =1000*1.6/F31 -> 208
B32: Monocristallin | C32: 2 | D32: ='choix-multiples'!G128 -> 16.5 | E32: % | F32: 6.25 | G32: m2 par kWc | H32: 2 | I32: =F32*1.87 -> 11.6875 | J32: 16 | K32: % | L32: =1000*1.6/F32 -> 256
B33: Monocristallin haute performance | C33: 3 | D33: ='choix-multiples'!G129 -> 19 | E33: % | F33: 5.263157895 | G33: m2 par kWc | H33: 3 | I33: 9.842105263 | J33: 19 | K33: % | L33: 304
B34: Par défaut | C34: 7 | D34: ='choix-multiples'!G130 -> 13 | E34: % | F34: 7.692307692 | G34: m2 par kWc | I34: 14.38461538 | J34: 13 | K34: % | L34: 208
B35: Type de montage : | D35: Facteur d'efficacité associé à la structure
C37: ='choix-multiples'!F132 -> 2 | D37: =VLOOKUP(C37,C39:E44,2,FALSE) -> 100 | E37: %
B39: Toiture inclinée | C39: 1 | D39: ='choix-multiples'!G134 -> 100 | E39: %
B40: Toiture plate | C40: 2 | D40: ='choix-multiples'!G135 -> 100 | E40: %
B41: ='choix-multiples'!E136 -> Flat roof back-to-back East-West | C41: 3 | D41: ='choix-multiples'!G136 -> 100 | E41: %
B42: En intégré | C42: 4 | D42: ='choix-multiples'!G137 -> 90 | E42: % | F42: Source : ADEME
F43: Source : Sunbird
B44: Autre | C44: 6 | E44: %
B46: Orientation des panneaux :
D47: Inclinaison (°)
D48: =C62 -> 0 | E48: =C64 -> 3 | F48: =C65 -> 4 | G48: =C66 -> 5 | H48: =C67 -> 0 | I48: =C68 -> 0 | J48: =C69 -> 0 | K48: =C70 -> 0 | L48: 9
C49: ='choix-multiples'!F139 -> 3 | D49: =VLOOKUP($C$49,$C$51:$M$57,2,FALSE) -> 0.87 | E49: =VLOOKUP($C$49,$C$51:$M$57,3,FALSE) -> 0.97 | F49: =VLOOKUP($C$49,$C$51:$M$57,4,FALSE) -> 0.99 | G49: =VLOOKUP($C$49,$C$51:$M$57,5,FALSE) -> 1 | H49: =VLOOKUP($C$49,$C$51:$M$57,6,FALSE) -> 1 | I49: =VLOOKUP($C$49,$C$51:$M$57,7,FALSE) -> 0.985 | J49: =VLOOKUP($C$49,$C$51:$M$57,8,FALSE) -> 0.97 | K49: =VLOOKUP($C$49,$C$51:$M$57,9,FALSE) -> 0.87 | L49: =VLOOKUP($C$49,$C$51:$M$57,10,FALSE) -> 0.96
B51: Est | C51: 1 | D51: 0.87 | E51: 0.88 | F51: 0.87 | G51: 0.84 | H51: 0.82 | I51: 0.8 | J51: 0.78 | K51: 0.69 | L51: 0.89
B52: Sud-est | C52: 2 | D52: 0.87 | E52: 0.95 | F52: 0.96 | G52: 0.96 | H52: 0.95 | I52: 0.94 | J52: 0.92 | K52: 0.82 | L52: 0.94
B53: Sud | C53: 3 | D53: 0.87 | E53: 0.97 | F53: 0.99 | G53: 1 | H53: 1 | I53: 0.985 | J53: 0.97 | K53: 0.87 | L53: 0.96
B54: Sud-ouest | C54: 4 | D54: 0.87 | E54: 0.95 | F54: 0.96 | G54: 0.96 | H54: 0.96 | I54: 0.95 | J54: 0.93 | K54: 0.84 | L54: 0.94
B55: Ouest | C55: 5 | D55: 0.87 | E55: 0.88 | F55: 0.86 | G55: 0.84 | H55: 0.82 | I55: 0.8 | J55: 0.78 | K55: 0.68 | L55: 0.89
B56: Oost west | C56: 6 | D56: 0.92 | E56: 0.92 | F56: 0.92 | G56: 0.92 | H56: 0.92 | I56: 0.92 | J56: 0.92 | K56: 0.92 | L56: 0.92
B58: Inclinaison : | D58: Facteur d'efficacité associé à l'orientation et l'inclinaison
C60: ='choix-multiples'!F181+2 -> 3 | D60: =VLOOKUP($C$60,$C$64:$E$66,2,FALSE) -> 0.97 | F60: =(D60*100)-100 -> -3 | G60: %
D61: rendement fct orientation | E61: facteur % surface PV / surface toiture dispo
F62: Source :
B64: 15° | C64: 3 | D64: =E49 -> 0.97 | E64: 0.8430610816
B65: 25° | C65: 4 | D65: =F49 -> 0.99 | E65: 0.6942855966 | F65: http://www.ef4.be/fr/pv/composants-dun-systeme/orientation-structure.html
B66: 35° | C66: 5 | D66: =G49 -> 1 | E66: 0.5951019399 | F66: + extrapolation pour 40° et 45°

Sheet Certificats_Verts
E3: Puissance électrique ≤ 5kWc | G3: Toutes tailles | J3: Technologie | K3: kWc | N3: Paramètres
C4: Région Bruxelles Capitale | E4: et personne morale ou pouvoir public | J4: ='choix-multiples'!G125 -> 1 | K4: =_cmt_peak_used -> 10 | N4: Coefficient d'émission en CO2 de l'installation PV | O4: ='choix-multiples'!G93 -> 394.5
N5: Coefficient multiplicateur PV si Pélec > 5kWc | O5: =IF(AND(K4<=5,'choix-multiples'!F98=1),1.32,1.32) -> 1.32
D6: Energie produite par l'installation envisagée (kWh) | E6: =IF(AND(K4<=5,'choix-multiples'!F98=1),H6,0) -> 0 | G6: =IF(E6=0,H6,0) -> 8924 | H6: =_Cmt_Estimat -> 8924 | N6: Coefficient multiplicateur PV si Pélec < 5kWc | O6: 1.65
D7: CV/MWh | E7: =O10 -> 1.953 | G7: =O10 -> 1.953
D8: Nombre CV | E8: =E6*E7/1000 -> 0 | G8: =G6*G7/1000 -> 17.428572 | H8: =SUM(E8:G8) -> 17.428572 | N8: Plage de puissance | O8: =IF(AND(K4>0,K4<=P13),Q13,IF(AND(K4>O14,K4<=P14),Q14,IF(AND(K4>O15,K4<=P15),Q15,IF(AND(K4>O16,K4<=P16),Q16,IF(K4>O17,Q17,"Error"))))) -> ]5,36]
D9: € de CV/an pour 10 ans | E9: =E8*Tool!$E$91 -> 0 | G9: =G8*Tool!E91 -> 1481.42862 | H9: =SUM(E9:G9) -> 1481.42862 | N9: Coef Multi | O9: =_xlfn.IFNA(VLOOKUP(O8,Q12:S17,2,FALSE),0) -> 1.074
D10: € de CV/an entre 10 et 15 ans | E10: 0 | G10: 0 | H10: =SUM(E10:G10) -> 0 | N10: Taux octroi | O10: =_xlfn.IFNA(VLOOKUP(O8,Q12:S17,3,FALSE),0) -> 1.953
D11: € de CV/an après 15 ans | E11: 0 | G11: 0 | H11: 0 | Q11: Tableau Coef multi et Taux d'octroi
D12: € de CV/an après 20 ans | E12: 0 | G12: 0 | H12: 0 | O12: Min | P12: Max | R12: Coef multi | S12: Taux d'octroi
D13: €/kWh | E13: =E9/(E6+1E-78) -> 0 | G13: =(G9/(G6+1E-78)) -> 0.166005 | H13: =H9/H6 -> 0.166005 | O13: 0 | P13: 5 | Q13: <=5 | R13: 1.13 | S13: 2.055
O14: 5 | P14: 36 | Q14: ="]"&O14&","&P14&"]" -> ]5,36] | R14: 1.074 | S14: 1.953
E15: Prix du marché | F15: Achat par Elia | O15: =P14 -> 36 | P15: 100 | Q15: ="]"&O15&","&P15&"]" -> ]36,100] | R15: 0.559 | S15: 1.016
D16: Valeur d'un Certificat Vert (€) | E16: =Tool!E91 -> 85 | F16: 65 | O16: =P15 -> 100 | P16: 250 | Q16: ="]"&O16&","&P16&"]" -> ]100,250] | R16: 0.353 | S16: 0.642
O17: =P16 -> 250 | Q17: ="]"&O17&","&P17&"]" -> ]250,] | R17: 0.319 | S17: 0.58
S18: https://www.brugel.brussels/themes/energies-renouvelables-11/mecanisme-des-certificats-verts-35
O19: source : https://www.brugel.brussels/publication/document/propositions/2021/fr/PROPOSITION-28-COEFFICIENT-MULTIPLICATEUR-APPLIQUE-PV.pdf
E55: € de CV / an | F55: € de CV / an | G55: € de CV / an | H55: € de CV / an
E56: Pour 10 ans | F56: Après 10 ans | G56: Après 15 ans | H56: Après 20 ans | J56: Nbr CV | K56: Durée
C57: ='choix-multiples'!F92 -> 1 | D57: = Région | E57: =VLOOKUP(C57,C61:E64,3,FALSE) -> 1481.42862 | F57: =VLOOKUP(C57,C61:F64,4,FALSE) -> 0 | G57: =VLOOKUP($C$57,C61:J64,5,FALSE) -> 0 | H57: =VLOOKUP($C$57,C61:J64,6,FALSE) -> 0 | J57: =VLOOKUP($C$57,C61:J64,8,FALSE) -> 17.428572 | K57: =VLOOKUP($C$57,C61:K64,9,FALSE) -> CV/an pour 10 ans ------->
C58: =Tool!E46 -> 10 | D58: m²
C59: =Tool!E52 -> 8924 | D59: kWh/an
C61: 1 | D61: € de CV/an | E61: =H9 -> 1481.42862 | F61: =H10 -> 0 | G61: =H11 -> 0 | H61: =H12 -> 0 | J61: =H8 -> 17.428572 | K61: CV/an pour 10 ans ------->
C62: 3 | D62: € de CV/an | E62: =I26 -> 0 | F62: =I27 -> 0 | G62: =I28 -> 0 | H62: =I29 -> 0 | J62: =I25 -> 0 | K62: CV/an pour 10 et 15 ans ->
C63: 2 | D63: € de CV/an | E63: =H43 -> 0 | F63: =H43 -> 0 | G63: =F63 -> 0 | H63: =H44 -> 0 | J63: =E39 -> 0 | K63: CV/an pour 20 ans ------->
C64: 4 | D64: € de CV/an | E64: =$H$52 -> 0 | F64: =$H$52 -> 0 | G64: =$H$52 -> 0 | H64: =$H$52 -> 0 | K64: Aucun CV -------------------->
C69: Coup de soleil électrique à Bruxelles!
C71: Le Parlement bruxellois a adopté cet été une nouvelle législation en vue de renforcer le développement des énergies renouvelables à Bruxelles. Les nouvelles mesures s'avèrent particulièrement intéressantes pour les particuliers qui souhaitent acquérir et installer un système photovoltaïque. Les petites installations photovoltaïques bénéficieront désormais d'un nombre accru de certificats verts pour chaque MWh injecté dans le réseau électrique. Ce nombre varie selon la surface installée: les 20 premiers m² recevront 7,27 certificats verts par MWh, les 40 m² suivants obtiendront 5,45 certificats verts par MWh et la surface restante recevra 3,63 certificats verts par MWh. Chaque certificat vert se vend actuellement entre 90 et 100€ sur un marché spécifique. Ce mécanisme de co-financement peut se combiner avec les primes "photovoltaïques" octroyées en Région bruxelloise. En cumulant ces incitants financiers, un capteur photovoltaïque peut désormais être amorti au mieux en 2 ans et demi (contre 8 à 10 ans auparavant). Après cet amortissement, le particulier récoltera les bénéfices de son investissement. Et la planète aussi!
C72: Pour plus d'information, n'hésitez pas à contacter le Facilitateur "petits systèmes" en Région bruxelloise: APERe - Grégory Neubourg: 02/209 04 04
C73: L'Arrêté du 19 juillet 2007 (article 16)
C75: Situation actuelle: | D75: Mise à jour : 8/05/2013
C76: http://www.bruxellesenvironnement.be/Templates/Professionnels/informer.aspx?id=32624
C77: Depuis la dernière adaptation du coefficient,en vigueur depuis le 20 octobre 2012, les prix des panneaux photovoltaïques ont encore baissé. Par conséquent un nouveau coefficient a été annoncé le 2 mai 2013, lequel est valable pour toutes nouvelles installations à partir du 2 août 2013. Il résulte de ce nouveau coefficient, combiné au principe de base, que 2,4 certificats verts sont délivrés par MWh produit.
C79: Concrètement:
C81: pour les installations certifiées* entre le 20 octobre 2012 et le premier août 2013 (inclus), vous recevez 4 certificats verts pour chaque MWh d'électricité produite.
C82: pour toutes les installations certifiées* à partir du 2 août 2013 , vous recevez 2,4 certificats verts pour chaque MWh d'électricité produite. Les personnes morales et les instances publiques reçoivent également 2,4 certificats verts.

Sheet Tableau pour le rapport
B2: PANNEAUX PHOTOVOLTAÏQUES
B4: Faire un copier-coller du tableau provenant du PVcalc
B7: Caractéristiques de l'installation
B8: Surface de panneaux | E8: =Tool!E51 -> 47.76119403 | F8: m²
B9: Nombre de panneaux | E9: =E8/1.6 -> 29.85074627 | F9: panneaux
B10: Orientation | E10: Sud | G10: A remplir
B11: Inclinaison | E11: 15 | F11: ° | G11: A remplir
B12: Puissance DC | E12: =_cmt_peak_used -> 10 | F12: kW
B13: Puissance AC | F13: kW | G13: A remplir
B14: Énergie produite
B15: Estimation de l'énergie utile produite | E15: =_Cmt_Estimat -> 8924 | F15: kWh/an
B16: Partie autoconsommée | E16: =E15*E17 -> 3123.4 | F16: KWh/an
B17: Rapport de l'électricité autoconsommée à la consommation annuelle | E17: =Tool!E70 -> 0.35
B18: Coûts
B19: Estimation du coût brut | E19: =Tool!E112 -> 15245.98 | F19: €
B20: Gains
B21: Gain annuel du projet photovoltaïque | E21: =Tool!E120 -> 2047,1 - 2509,3 | F21: €/an
C22: Gain sur la facture d'achat d'électricité | E22: =Tool!E75 -> 674,7 - 1136,9 | F22: €/an
C23: Gain du la vente d'électricité | E23: =Tool!E77 -> 232.024 | F23: €/an
C24: Gain issu de la vente de CV | E24: =Tool!E93 -> 1365.372 | F24: €/an
B25: Temps de retour
B26: Temps de retour | E26: =Tool!E122 -> 7,4 - 6,1 | F26: ans

Sheet Déductions_fiscales (hidden)
C3: Déductions Totales : | D3: =(IF(K21=0,D22,K22))*D7 -> 0 | E3: € | H3: "Il est possible de répartir ses travaux sur plusieurs années, au quel cas la réduction d'impôt est accordée pour chaque année fiscale." http://mineco.fgov.be/ | Q3: Pour ce qui concerne les habitations occupées depuis au moins 5 ans avant le début des travaux, et si le montant de la réduction d’impôt de 40 % excède les plafonds de 2 830 ou 3 680 euros pour l’année 2011, cet excédent peut être reporté sur les 3 périodes imposables suivantes sans dépasser, par période imposable, le montant limite précité, y compris les nouvelles dépenses de la période.
C4: Coût de l'installation déductions faites : | D4: =IF(K21=0,D21,K21) -> 15245.98 | E4: €
D6: Code
C7: =H12 -> 2 | D7: 1
C11: Dans le cas d'une année fiscale considérée : | H11: Dans le cas de deux années fiscales considérées | M11: Code
H12: ='choix-multiples'!J106 -> 2 | M12: =IF(H12='choix-multiples'!J109,2,(IF(Déductions_fiscales!H12='choix-multiples'!J108,0,1))) -> 0 | P12: Dans le cas d'une habitation occupée depuis au moins 5 ans
C13: Coût financier : | D13: =IF(Tool!E104<1,Tool!F104,Tool!E104) -> 15245.98 | E13: € TVAC | K13: =IF(D17>D16,D13,0) -> 0 | L13: € TVAC | Q13: ='choix-multiples'!F98 -> 2
Q14: Coût financier : | U14: =IF(Tool!E104<1,Tool!F104,Tool!E104) -> 15245.98 | V14: € TVAC
C15: Pourcentage de déduction : | D15: =IF(Q13=1,Coût_Net!L36*100,0) -> 0 | E15: % | K15: =Coût_Net!L36*100 -> 40 | L15: %
C16: Plafond : | D16: =Coût_Net!M36 -> 3680000 | E16: € | H16: Plafond en 2 années : | K16: =(Coût_Net!M36)*M12 -> 0 | L16: € en 2 ans | Q16: Pourcentage de déduction : | U16: =IF(Q13=1,Coût_Net!L36,0) -> 0 | V16: %
C17: Déduction possible : | D17: =D13*D15/100 -> 0 | E17: € | H17: Déduction possible : | K17: =K13*K15/100 -> 0 | Q17: Plafond : | U17: =Coût_Net!M36 -> 3680000 | V17: €
C18: Déduction acquise : | D18: =IF(D17<D16,D17,D16) -> 0 | E18: € | H18: Déductions acquises en 2 années : | K18: =IF(K17<K16,K17,K16) -> 0 | L18: € en 2 ans | Q18: Déduction possible : | U18: =U14*U16 -> 0 | V18: €
Q19: Déduction maximale : | U19: =U17*4 -> 14720000 | V19: €
Q20: Déduction acquise : | U20: =MIN(U18,U19) -> 0 | V20: €
C21: Coûts restants à payer : | D21: =(D13-D18)*D7 -> 15245.98 | E21: € | H21: Coûts restants à payer : | K21: =(K13-K18)*D7 -> 0 | L21: €
C22: Déduction réellement acquise : | D22: =D13-D21 -> 0 | E22: € | H22: Déduction réellement acquise : | K22: =K13-K21 -> 0 | L22: € en 2 ans | Q22: Coûts restants à payer : | U22: =(U14-U20)*D7 -> 15245.98 | V22: €
Q23: Déduction réellement acquise : | U23: =U14-U22 -> 0 | V23: €
C75: Situation actuelle: | D75: Mise à jour : 8/05/2013
C76: http://www.bruxellesenvironnement.be/Templates/Professionnels/informer.aspx?id=32624
C77: Depuis la dernière adaptation du coefficient,en vigueur depuis le 20 octobre 2012, les prix des panneaux photovoltaïques ont encore baissé. Par conséquent un nouveau coefficient a été annoncé le 2 mai 2013, lequel est valable pour toutes nouvelles installations à partir du 2 août 2013. Il résulte de ce nouveau coefficient, combiné au principe de base, que 2,4 certificats verts sont délivrés par MWh produit.
C79: Concrètement:
C81: pour les installations certifiées* entre le 20 octobre 2012 et le premier août 2013 (inclus), vous recevez 4 certificats verts pour chaque MWh d'électricité produite.
C82: pour toutes les installations certifiées* à partir du 2 août 2013 , vous recevez 2,4 certificats verts pour chaque MWh d'électricité produite. Les personnes morales et les instances publiques reçoivent également 2,4 certificats verts.

Sheet Messages (hidden)

Sheet Révision de versions
A2: Version du | B2: Les onglets en rouges sont ceux ajoutés
A3: 2018-10-04 | B3: Fonctionnement général et réparations des bugs (Comments, translations, etc)
B4: Systèmes tracker et posés au sol retirés
B5: Panneaux amorphes retirés
B6: Chiffres de consommations estimées modifiées : (kWh/m²/an) selon le secteur d'activité
B7: On ne peut plus que choisir 3 possibilités d'inclinaison : 15° ; 25° ou 35°
B8: Le calcul de la surface de PV est maintenant fonction des inclinaisons encodées (la distance entre rangées pour éviter l'ombre le 21/12 varie selon inclinaison des panneaux)
B9: Modification des facteurs de production selon inclinaison et orientation
B10: Pour la configuration est-ouest, le facteur de production est fixe
B12: 3 choix possibles :
B13: 1. on encode la puissance désirée : le logiciel prévient toujours si la puissance encodée est supérieure au maximum installable selon la surface encodée
B14: 2. Le logiciel calcul la puissance maximale installable selon orientation/inclinaison et surface de toiture encodée
B15: 3. Orientation est-ouest : Cocher la case "oui" dans le tableau séparée pour la configuration est-ouest => maximum de puissance installée
B17: Les calculs de rentabilités se font sur base de :
B18: Si aucune puissance encodée : Max de puissance installable avec configuration autre que est-ouest (choix 2)
B19: Si puissance encodée : Calcul sur base de cette puissance (choix 1)
B20: Si case "oui" tableau est-ouest cochée, alors le calcul se fait avec la puissance est-ouest (choix 3)
B22: Désormais le calcul du nombre de CV occtroyé varie si la puissance est < ou > à 5kWc
B23: L'estimation du prix de l'installation à été revue pour être représentatif de la tendance du marché actuel. Le prix varie selon la puissance encodée (max 500kWc)
B24: Ajout d'un commentaire pour les primes : aide pour les investissements environnementaux pour les entreprises
A28: Version du 28/02/2019 | B28: Ajout d'une image pour l'orientation est-ouest et d'un lien d'informations supplémentaires
B29: ajout d'un texte d'explication pour la compensation (voir encadré sous "taux d'autoconsommation")
B30: modification des unités lors du choix du secteur d'activités (tertiaire, maisons, immeubles, etc), cellule H21
A32: Version 05/07/2019 | B32: Suppression du principe de compensation pour les installations de < 5kWc
B33: Modification du texte explicatif disant qu'on ne prend pas en compte la compensation
A35: Version 25/10/2021 | B35: modification Coefficient Multi pour les CV
B36: Révision formule
B37: mise en commentaire de certains macros jugée inutiles
B38: changement formule pour les doonées utilisées (Puissance, surface capteur et énergie produite) pour rendre le tool plus robuste
B39: Ajout montage dos à dos dans les types de montage pour rendre l'encodage plus simple
B40: changement formule dans la feuille "calcul surface" pour rendre le calcul faisable sans maccro (jugé incomplète --> mise en commentaire des maccro plus utilisé)
A41: Version 11/05/2022 | B41: modification de la formule pour le calcul des certificats verts : suppression de la formule reprennant les économies de CO2 réelles et modifié par la formule basique de multiplication du taux d'occtroi => CV = Energie annuelle/1000*taux d'occtroi
B42: suppresion du bug lié à la protection de la cellule lors du choix de l'inclinaison des panneaux via la liste déroulante
B43: correction de quelques erreurs d'orthographe dans les textes
A44: Version 04/10/2022 | B44: simplification des cases à remplir
